Workbook

Sheet Control
B1: Date | C1: =NOW() -> 2020-09-19T21:10:45.910 | E1: =TEXT(E3,"MMMM") -> September
B2: io | C2: in | E2: =TEXT(E3,"ddd") -> Tue | F2: Wed | G2: Thu | H2: Fri | I2: Sat | J2: Sun | K2: Mon | M2: Date | N2: wave | O2: # | P2: glyph | Q2: To-Do | R2: Personal | S2: Professional | T2: Other
B3: name | C3: Caleb | E3: =M3 -> 2020-09-01 | F3: =E3+1 -> 2020-09-02 | G3: 2020-09-03 | H3: 2020-09-04 | I3: 2020-09-05 | J3: 2020-09-06 | K3: 2020-09-07 | M3: 2020-09-01 | N3: =IFERROR(INDEX(tzolkinGlyphs,MATCH((ROUND(IF(((ROUND(1+(20*(((M3-tzolkinStartDate)/20)-(ROUNDDOWN((M3-tzolkinStartDate)/20,0)))),0))-(IF(((((ROUNDDOWN(M3-tzolkinStartDate,0)+1)/13)-ROUNDDOWN((ROUNDDOWN(M3-tzolkinStartDate,0)+1)/13,0))*13)>0,((((ROUNDDOWN(M3-tzolkinStartDate,0)+1)/13)-ROUNDDOWN((ROUNDDOWN(M3-tzolkinStartDate,0)+1)/13,0))*13),13)))<0,20+((ROUND(1+(20*(((M3-tzolkinStartDate)/20)-(ROUNDDOWN((M3-tzolkinStartDate)/20,0)))),0))-(IF(((((ROUNDDOWN(M3-tzolkinStartDate,0)+1)/13)-ROUNDDOWN((ROUNDDOWN(M3-tzolkinStartDate,0)+1)/13,0))*13)>0,((((ROUNDDOWN(M3-tzolkinStartDate,0)+1)/13)-ROUNDDOWN((ROUNDDOWN(M3-tzolkinStartDate,0)+1)/13,0))*13),13))),((ROUND(1+(20*(((M3-tzolkinStartDate)/20)-(ROUNDDOWN((M3-tzolkinStartDate)/20,0)))),0))-(IF(((((ROUNDDOWN(M3-tzolkinStartDate,0)+1)/13)-ROUNDDOWN((ROUNDDOWN(M3-tzolkinStartDate,0)+1)/13,0))*13)>0,((((ROUNDDOWN(M3-tzolkinStartDate,0)+1)/13)-ROUNDDOWN((ROUNDDOWN(M3-tzolkinStartDate,0)+1)/13,0))*13),13)))),0)+1),glyphPosition,0)),"Manik") -> Chicchan | O3: =(IF(((((ROUNDDOWN(M3-tzolkinStartDate,0)+1)/13)-ROUNDDOWN((ROUNDDOWN(M3-tzolkinStartDate,0)+1)/13,0))*13)>0,((((ROUNDDOWN(M3-tzolkinStartDate,0)+1)/13)-ROUNDDOWN((ROUNDDOWN(M3-tzolkinStartDate,0)+1)/13,0))*13),13)) -> 7 | P3: =INDEX(tzolkinGlyphs,MATCH(ROUND((((((M3-tzolkinStartDate)/20)-(ROUNDDOWN((M3-tzolkinStartDate)/20,0)))*20)+1),0),glyphPosition,0)) -> Chuen | R3: =INDEX(schedule!$C:$C,MATCH(1,($M3=schedule!$A:$A)*(R$2=schedule!$B:$B),0)) ->  | S3: =INDEX(schedule!$C:$C,MATCH(1,($M3=schedule!$A:$A)*(S$2=schedule!$B:$B),0)) ->  | T3: =INDEX(schedule!$C:$C,MATCH(1,($M3=schedule!$A:$A)*(T$2=schedule!$B:$B),0)) -> 
B4: focus | C4: Personal | E4: =E3+7 -> 2020-09-08 | F4: 2020-09-09 | G4: 2020-09-10 | H4: 2020-09-11 | I4: 2020-09-12 | J4: 2020-09-13 | K4: 2020-09-14 | M4: =M3+1 -> 2020-09-02 | N4: =IFERROR(INDEX(tzolkinGlyphs,MATCH((ROUND(IF(((ROUND(1+(20*(((M4-tzolkinStartDate)/20)-(ROUNDDOWN((M4-tzolkinStartDate)/20,0)))),0))-(IF(((((ROUNDDOWN(M4-tzolkinStartDate,0)+1)/13)-ROUNDDOWN((ROUNDDOWN(M4-tzolkinStartDate,0)+1)/13,0))*13)>0,((((ROUNDDOWN(M4-tzolkinStartDate,0)+1)/13)-ROUNDDOWN((ROUNDDOWN(M4-tzolkinStartDate,0)+1)/13,0))*13),13)))<0,20+((ROUND(1+(20*(((M4-tzolkinStartDate)/20)-(ROUNDDOWN((M4-tzolkinStartDate)/20,0)))),0))-(IF(((((ROUNDDOWN(M4-tzolkinStartDate,0)+1)/13)-ROUNDDOWN((ROUNDDOWN(M4-tzolkinStartDate,0)+1)/13,0))*13)>0,((((ROUNDDOWN(M4-tzolkinStartDate,0)+1)/13)-ROUNDDOWN((ROUNDDOWN(M4-tzolkinStartDate,0)+1)/13,0))*13),13))),((ROUND(1+(20*(((M4-tzolkinStartDate)/20)-(ROUNDDOWN((M4-tzolkinStartDate)/20,0)))),0))-(IF(((((ROUNDDOWN(M4-tzolkinStartDate,0)+1)/13)-ROUNDDOWN((ROUNDDOWN(M4-tzolkinStartDate,0)+1)/13,0))*13)>0,((((ROUNDDOWN(M4-tzolkinStartDate,0)+1)/13)-ROUNDDOWN((ROUNDDOWN(M4-tzolkinStartDate,0)+1)/13,0))*13),13)))),0)+1),glyphPosition,0)),"Manik") -> Chicchan | O4: =(IF(((((ROUNDDOWN(M4-tzolkinStartDate,0)+1)/13)-ROUNDDOWN((ROUNDDOWN(M4-tzolkinStartDate,0)+1)/13,0))*13)>0,((((ROUNDDOWN(M4-tzolkinStartDate,0)+1)/13)-ROUNDDOWN((ROUNDDOWN(M4-tzolkinStartDate,0)+1)/13,0))*13),13)) -> 8 | P4: =INDEX(tzolkinGlyphs,MATCH(ROUND((((((M4-tzolkinStartDate)/20)-(ROUNDDOWN((M4-tzolkinStartDate)/20,0)))*20)+1),0),glyphPosition,0)) -> Eb | R4: =INDEX(schedule!$C:$C,MATCH(1,($M4=schedule!$A:$A)*(R$2=schedule!$B:$B),0)) ->  | S4: =INDEX(schedule!$C:$C,MATCH(1,($M4=schedule!$A:$A)*(S$2=schedule!$B:$B),0)) ->  | T4: =INDEX(schedule!$C:$C,MATCH(1,($M4=schedule!$A:$A)*(T$2=schedule!$B:$B),0)) -> 
B5: task | C5: Study | E5: =E4+7 -> 2020-09-15 | F5: 2020-09-16 | G5: 2020-09-17 | H5: 2020-09-18 | I5: 2020-09-19 | J5: 2020-09-20 | K5: 2020-09-21 | M5: 2020-09-03 | N5: =IFERROR(INDEX(tzolkinGlyphs,MATCH((ROUND(IF(((ROUND(1+(20*(((M5-tzolkinStartDate)/20)-(ROUNDDOWN((M5-tzolkinStartDate)/20,0)))),0))-(IF(((((ROUNDDOWN(M5-tzolkinStartDate,0)+1)/13)-ROUNDDOWN((ROUNDDOWN(M5-tzolkinStartDate,0)+1)/13,0))*13)>0,((((ROUNDDOWN(M5-tzolkinStartDate,0)+1)/13)-ROUNDDOWN((ROUNDDOWN(M5-tzolkinStartDate,0)+1)/13,0))*13),13)))<0,20+((ROUND(1+(20*(((M5-tzolkinStartDate)/20)-(ROUNDDOWN((M5-tzolkinStartDate)/20,0)))),0))-(IF(((((ROUNDDOWN(M5-tzolkinStartDate,0)+1)/13)-ROUNDDOWN((ROUNDDOWN(M5-tzolkinStartDate,0)+1)/13,0))*13)>0,((((ROUNDDOWN(M5-tzolkinStartDate,0)+1)/13)-ROUNDDOWN((ROUNDDOWN(M5-tzolkinStartDate,0)+1)/13,0))*13),13))),((ROUND(1+(20*(((M5-tzolkinStartDate)/20)-(ROUNDDOWN((M5-tzolkinStartDate)/20,0)))),0))-(IF(((((ROUNDDOWN(M5-tzolkinStartDate,0)+1)/13)-ROUNDDOWN((ROUNDDOWN(M5-tzolkinStartDate,0)+1)/13,0))*13)>0,((((ROUNDDOWN(M5-tzolkinStartDate,0)+1)/13)-ROUNDDOWN((ROUNDDOWN(M5-tzolkinStartDate,0)+1)/13,0))*13),13)))),0)+1),glyphPosition,0)),"Manik") -> Chicchan | O5: =(IF(((((ROUNDDOWN(M5-tzolkinStartDate,0)+1)/13)-ROUNDDOWN((ROUNDDOWN(M5-tzolkinStartDate,0)+1)/13,0))*13)>0,((((ROUNDDOWN(M5-tzolkinStartDate,0)+1)/13)-ROUNDDOWN((ROUNDDOWN(M5-tzolkinStartDate,0)+1)/13,0))*13),13)) -> 9 | P5: =INDEX(tzolkinGlyphs,MATCH(ROUND((((((M5-tzolkinStartDate)/20)-(ROUNDDOWN((M5-tzolkinStartDate)/20,0)))*20)+1),0),glyphPosition,0)) -> Ben | R5: =INDEX(schedule!$C:$C,MATCH(1,($M5=schedule!$A:$A)*(R$2=schedule!$B:$B),0)) ->  | S5: =INDEX(schedule!$C:$C,MATCH(1,($M5=schedule!$A:$A)*(S$2=schedule!$B:$B),0)) ->  | T5: =INDEX(schedule!$C:$C,MATCH(1,($M5=schedule!$A:$A)*(T$2=schedule!$B:$B),0)) -> 
E6: =E5+7 -> 2020-09-22 | F6: 2020-09-23 | G6: 2020-09-24 | H6: 2020-09-25 | I6: 2020-09-26 | J6: 2020-09-27 | K6: 2020-09-28 | M6: 2020-09-04 | N6: =IFERROR(INDEX(tzolkinGlyphs,MATCH((ROUND(IF(((ROUND(1+(20*(((M6-tzolkinStartDate)/20)-(ROUNDDOWN((M6-tzolkinStartDate)/20,0)))),0))-(IF(((((ROUNDDOWN(M6-tzolkinStartDate,0)+1)/13)-ROUNDDOWN((ROUNDDOWN(M6-tzolkinStartDate,0)+1)/13,0))*13)>0,((((ROUNDDOWN(M6-tzolkinStartDate,0)+1)/13)-ROUNDDOWN((ROUNDDOWN(M6-tzolkinStartDate,0)+1)/13,0))*13),13)))<0,20+((ROUND(1+(20*(((M6-tzolkinStartDate)/20)-(ROUNDDOWN((M6-tzolkinStartDate)/20,0)))),0))-(IF(((((ROUNDDOWN(M6-tzolkinStartDate,0)+1)/13)-ROUNDDOWN((ROUNDDOWN(M6-tzolkinStartDate,0)+1)/13,0))*13)>0,((((ROUNDDOWN(M6-tzolkinStartDate,0)+1)/13)-ROUNDDOWN((ROUNDDOWN(M6-tzolkinStartDate,0)+1)/13,0))*13),13))),((ROUND(1+(20*(((M6-tzolkinStartDate)/20)-(ROUNDDOWN((M6-tzolkinStartDate)/20,0)))),0))-(IF(((((ROUNDDOWN(M6-tzolkinStartDate,0)+1)/13)-ROUNDDOWN((ROUNDDOWN(M6-tzolkinStartDate,0)+1)/13,0))*13)>0,((((ROUNDDOWN(M6-tzolkinStartDate,0)+1)/13)-ROUNDDOWN((ROUNDDOWN(M6-tzolkinStartDate,0)+1)/13,0))*13),13)))),0)+1),glyphPosition,0)),"Manik") -> Chicchan | O6: =(IF(((((ROUNDDOWN(M6-tzolkinStartDate,0)+1)/13)-ROUNDDOWN((ROUNDDOWN(M6-tzolkinStartDate,0)+1)/13,0))*13)>0,((((ROUNDDOWN(M6-tzolkinStartDate,0)+1)/13)-ROUNDDOWN((ROUNDDOWN(M6-tzolkinStartDate,0)+1)/13,0))*13),13)) -> 10 | P6: =INDEX(tzolkinGlyphs,MATCH(ROUND((((((M6-tzolkinStartDate)/20)-(ROUNDDOWN((M6-tzolkinStartDate)/20,0)))*20)+1),0),glyphPosition,0)) -> Ix | R6: =INDEX(schedule!$C:$C,MATCH(1,($M6=schedule!$A:$A)*(R$2=schedule!$B:$B),0)) ->  | S6: =INDEX(schedule!$C:$C,MATCH(1,($M6=schedule!$A:$A)*(S$2=schedule!$B:$B),0)) ->  | T6: =INDEX(schedule!$C:$C,MATCH(1,($M6=schedule!$A:$A)*(T$2=schedule!$B:$B),0)) -> 
B7: notes | C7: Today was a good day. Fill out your activity here and click the Punch button in the top left. These notes are recorded to the hours sheet. | E7: =E6+7 -> 2020-09-29 | F7: 2020-09-30 | G7: 2020-10-01 | H7: 2020-10-02 | I7: 2020-10-03 | J7: 2020-10-04 | K7: 2020-10-05 | M7: 2020-09-05 | N7: =IFERROR(INDEX(tzolkinGlyphs,MATCH((ROUND(IF(((ROUND(1+(20*(((M7-tzolkinStartDate)/20)-(ROUNDDOWN((M7-tzolkinStartDate)/20,0)))),0))-(IF(((((ROUNDDOWN(M7-tzolkinStartDate,0)+1)/13)-ROUNDDOWN((ROUNDDOWN(M7-tzolkinStartDate,0)+1)/13,0))*13)>0,((((ROUNDDOWN(M7-tzolkinStartDate,0)+1)/13)-ROUNDDOWN((ROUNDDOWN(M7-tzolkinStartDate,0)+1)/13,0))*13),13)))<0,20+((ROUND(1+(20*(((M7-tzolkinStartDate)/20)-(ROUNDDOWN((M7-tzolkinStartDate)/20,0)))),0))-(IF(((((ROUNDDOWN(M7-tzolkinStartDate,0)+1)/13)-ROUNDDOWN((ROUNDDOWN(M7-tzolkinStartDate,0)+1)/13,0))*13)>0,((((ROUNDDOWN(M7-tzolkinStartDate,0)+1)/13)-ROUNDDOWN((ROUNDDOWN(M7-tzolkinStartDate,0)+1)/13,0))*13),13))),((ROUND(1+(20*(((M7-tzolkinStartDate)/20)-(ROUNDDOWN((M7-tzolkinStartDate)/20,0)))),0))-(IF(((((ROUNDDOWN(M7-tzolkinStartDate,0)+1)/13)-ROUNDDOWN((ROUNDDOWN(M7-tzolkinStartDate,0)+1)/13,0))*13)>0,((((ROUNDDOWN(M7-tzolkinStartDate,0)+1)/13)-ROUNDDOWN((ROUNDDOWN(M7-tzolkinStartDate,0)+1)/13,0))*13),13)))),0)+1),glyphPosition,0)),"Manik") -> Chicchan | O7: =(IF(((((ROUNDDOWN(M7-tzolkinStartDate,0)+1)/13)-ROUNDDOWN((ROUNDDOWN(M7-tzolkinStartDate,0)+1)/13,0))*13)>0,((((ROUNDDOWN(M7-tzolkinStartDate,0)+1)/13)-ROUNDDOWN((ROUNDDOWN(M7-tzolkinStartDate,0)+1)/13,0))*13),13)) -> 11 | P7: =INDEX(tzolkinGlyphs,MATCH(ROUND((((((M7-tzolkinStartDate)/20)-(ROUNDDOWN((M7-tzolkinStartDate)/20,0)))*20)+1),0),glyphPosition,0)) -> Men | R7: =INDEX(schedule!$C:$C,MATCH(1,($M7=schedule!$A:$A)*(R$2=schedule!$B:$B),0)) ->  | S7: =INDEX(schedule!$C:$C,MATCH(1,($M7=schedule!$A:$A)*(S$2=schedule!$B:$B),0)) ->  | T7: =INDEX(schedule!$C:$C,MATCH(1,($M7=schedule!$A:$A)*(T$2=schedule!$B:$B),0)) -> 
M8: 2020-09-06 | N8: =IFERROR(INDEX(tzolkinGlyphs,MATCH((ROUND(IF(((ROUND(1+(20*(((M8-tzolkinStartDate)/20)-(ROUNDDOWN((M8-tzolkinStartDate)/20,0)))),0))-(IF(((((ROUNDDOWN(M8-tzolkinStartDate,0)+1)/13)-ROUNDDOWN((ROUNDDOWN(M8-tzolkinStartDate,0)+1)/13,0))*13)>0,((((ROUNDDOWN(M8-tzolkinStartDate,0)+1)/13)-ROUNDDOWN((ROUNDDOWN(M8-tzolkinStartDate,0)+1)/13,0))*13),13)))<0,20+((ROUND(1+(20*(((M8-tzolkinStartDate)/20)-(ROUNDDOWN((M8-tzolkinStartDate)/20,0)))),0))-(IF(((((ROUNDDOWN(M8-tzolkinStartDate,0)+1)/13)-ROUNDDOWN((ROUNDDOWN(M8-tzolkinStartDate,0)+1)/13,0))*13)>0,((((ROUNDDOWN(M8-tzolkinStartDate,0)+1)/13)-ROUNDDOWN((ROUNDDOWN(M8-tzolkinStartDate,0)+1)/13,0))*13),13))),((ROUND(1+(20*(((M8-tzolkinStartDate)/20)-(ROUNDDOWN((M8-tzolkinStartDate)/20,0)))),0))-(IF(((((ROUNDDOWN(M8-tzolkinStartDate,0)+1)/13)-ROUNDDOWN((ROUNDDOWN(M8-tzolkinStartDate,0)+1)/13,0))*13)>0,((((ROUNDDOWN(M8-tzolkinStartDate,0)+1)/13)-ROUNDDOWN((ROUNDDOWN(M8-tzolkinStartDate,0)+1)/13,0))*13),13)))),0)+1),glyphPosition,0)),"Manik") -> Chicchan | O8: =(IF(((((ROUNDDOWN(M8-tzolkinStartDate,0)+1)/13)-ROUNDDOWN((ROUNDDOWN(M8-tzolkinStartDate,0)+1)/13,0))*13)>0,((((ROUNDDOWN(M8-tzolkinStartDate,0)+1)/13)-ROUNDDOWN((ROUNDDOWN(M8-tzolkinStartDate,0)+1)/13,0))*13),13)) -> 12 | P8: =INDEX(tzolkinGlyphs,MATCH(ROUND((((((M8-tzolkinStartDate)/20)-(ROUNDDOWN((M8-tzolkinStartDate)/20,0)))*20)+1),0),glyphPosition,0)) -> Cib | R8: =INDEX(schedule!$C:$C,MATCH(1,($M8=schedule!$A:$A)*(R$2=schedule!$B:$B),0)) ->  | S8: =INDEX(schedule!$C:$C,MATCH(1,($M8=schedule!$A:$A)*(S$2=schedule!$B:$B),0)) ->  | T8: =INDEX(schedule!$C:$C,MATCH(1,($M8=schedule!$A:$A)*(T$2=schedule!$B:$B),0)) -> 
F9: To-Do Today | M9: 2020-09-07 | N9: =IFERROR(INDEX(tzolkinGlyphs,MATCH((ROUND(IF(((ROUND(1+(20*(((M9-tzolkinStartDate)/20)-(ROUNDDOWN((M9-tzolkinStartDate)/20,0)))),0))-(IF(((((ROUNDDOWN(M9-tzolkinStartDate,0)+1)/13)-ROUNDDOWN((ROUNDDOWN(M9-tzolkinStartDate,0)+1)/13,0))*13)>0,((((ROUNDDOWN(M9-tzolkinStartDate,0)+1)/13)-ROUNDDOWN((ROUNDDOWN(M9-tzolkinStartDate,0)+1)/13,0))*13),13)))<0,20+((ROUND(1+(20*(((M9-tzolkinStartDate)/20)-(ROUNDDOWN((M9-tzolkinStartDate)/20,0)))),0))-(IF(((((ROUNDDOWN(M9-tzolkinStartDate,0)+1)/13)-ROUNDDOWN((ROUNDDOWN(M9-tzolkinStartDate,0)+1)/13,0))*13)>0,((((ROUNDDOWN(M9-tzolkinStartDate,0)+1)/13)-ROUNDDOWN((ROUNDDOWN(M9-tzolkinStartDate,0)+1)/13,0))*13),13))),((ROUND(1+(20*(((M9-tzolkinStartDate)/20)-(ROUNDDOWN((M9-tzolkinStartDate)/20,0)))),0))-(IF(((((ROUNDDOWN(M9-tzolkinStartDate,0)+1)/13)-ROUNDDOWN((ROUNDDOWN(M9-tzolkinStartDate,0)+1)/13,0))*13)>0,((((ROUNDDOWN(M9-tzolkinStartDate,0)+1)/13)-ROUNDDOWN((ROUNDDOWN(M9-tzolkinStartDate,0)+1)/13,0))*13),13)))),0)+1),glyphPosition,0)),"Manik") -> Chicchan | O9: =(IF(((((ROUNDDOWN(M9-tzolkinStartDate,0)+1)/13)-ROUNDDOWN((ROUNDDOWN(M9-tzolkinStartDate,0)+1)/13,0))*13)>0,((((ROUNDDOWN(M9-tzolkinStartDate,0)+1)/13)-ROUNDDOWN((ROUNDDOWN(M9-tzolkinStartDate,0)+1)/13,0))*13),13)) -> 13 | P9: =INDEX(tzolkinGlyphs,MATCH(ROUND((((((M9-tzolkinStartDate)/20)-(ROUNDDOWN((M9-tzolkinStartDate)/20,0)))*20)+1),0),glyphPosition,0)) -> Caban | R9: =INDEX(schedule!$C:$C,MATCH(1,($M9=schedule!$A:$A)*(R$2=schedule!$B:$B),0)) ->  | S9: =INDEX(schedule!$C:$C,MATCH(1,($M9=schedule!$A:$A)*(S$2=schedule!$B:$B),0)) ->  | T9: =INDEX(schedule!$C:$C,MATCH(1,($M9=schedule!$A:$A)*(T$2=schedule!$B:$B),0)) -> 
E10: 6 | M10: 2020-09-08 | N10: =IFERROR(INDEX(tzolkinGlyphs,MATCH((ROUND(IF(((ROUND(1+(20*(((M10-tzolkinStartDate)/20)-(ROUNDDOWN((M10-tzolkinStartDate)/20,0)))),0))-(IF(((((ROUNDDOWN(M10-tzolkinStartDate,0)+1)/13)-ROUNDDOWN((ROUNDDOWN(M10-tzolkinStartDate,0)+1)/13,0))*13)>0,((((ROUNDDOWN(M10-tzolkinStartDate,0)+1)/13)-ROUNDDOWN((ROUNDDOWN(M10-tzolkinStartDate,0)+1)/13,0))*13),13)))<0,20+((ROUND(1+(20*(((M10-tzolkinStartDate)/20)-(ROUNDDOWN((M10-tzolkinStartDate)/20,0)))),0))-(IF(((((ROUNDDOWN(M10-tzolkinStartDate,0)+1)/13)-ROUNDDOWN((ROUNDDOWN(M10-tzolkinStartDate,0)+1)/13,0))*13)>0,((((ROUNDDOWN(M10-tzolkinStartDate,0)+1)/13)-ROUNDDOWN((ROUNDDOWN(M10-tzolkinStartDate,0)+1)/13,0))*13),13))),((ROUND(1+(20*(((M10-tzolkinStartDate)/20)-(ROUNDDOWN((M10-tzolkinStartDate)/20,0)))),0))-(IF(((((ROUNDDOWN(M10-tzolkinStartDate,0)+1)/13)-ROUNDDOWN((ROUNDDOWN(M10-tzolkinStartDate,0)+1)/13,0))*13)>0,((((ROUNDDOWN(M10-tzolkinStartDate,0)+1)/13)-ROUNDDOWN((ROUNDDOWN(M10-tzolkinStartDate,0)+1)/13,0))*13),13)))),0)+1),glyphPosition,0)),"Manik") -> Etznab | O10: =(IF(((((ROUNDDOWN(M10-tzolkinStartDate,0)+1)/13)-ROUNDDOWN((ROUNDDOWN(M10-tzolkinStartDate,0)+1)/13,0))*13)>0,((((ROUNDDOWN(M10-tzolkinStartDate,0)+1)/13)-ROUNDDOWN((ROUNDDOWN(M10-tzolkinStartDate,0)+1)/13,0))*13),13)) -> 1 | P10: =INDEX(tzolkinGlyphs,MATCH(ROUND((((((M10-tzolkinStartDate)/20)-(ROUNDDOWN((M10-tzolkinStartDate)/20,0)))*20)+1),0),glyphPosition,0)) -> Etznab | R10: =INDEX(schedule!$C:$C,MATCH(1,($M10=schedule!$A:$A)*(R$2=schedule!$B:$B),0)) ->  | S10: =INDEX(schedule!$C:$C,MATCH(1,($M10=schedule!$A:$A)*(S$2=schedule!$B:$B),0)) ->  | T10: =INDEX(schedule!$C:$C,MATCH(1,($M10=schedule!$A:$A)*(T$2=schedule!$B:$B),0)) -> 
E11: =E10+1 -> 7 | M11: 2020-09-09 | N11: =IFERROR(INDEX(tzolkinGlyphs,MATCH((ROUND(IF(((ROUND(1+(20*(((M11-tzolkinStartDate)/20)-(ROUNDDOWN((M11-tzolkinStartDate)/20,0)))),0))-(IF(((((ROUNDDOWN(M11-tzolkinStartDate,0)+1)/13)-ROUNDDOWN((ROUNDDOWN(M11-tzolkinStartDate,0)+1)/13,0))*13)>0,((((ROUNDDOWN(M11-tzolkinStartDate,0)+1)/13)-ROUNDDOWN((ROUNDDOWN(M11-tzolkinStartDate,0)+1)/13,0))*13),13)))<0,20+((ROUND(1+(20*(((M11-tzolkinStartDate)/20)-(ROUNDDOWN((M11-tzolkinStartDate)/20,0)))),0))-(IF(((((ROUNDDOWN(M11-tzolkinStartDate,0)+1)/13)-ROUNDDOWN((ROUNDDOWN(M11-tzolkinStartDate,0)+1)/13,0))*13)>0,((((ROUNDDOWN(M11-tzolkinStartDate,0)+1)/13)-ROUNDDOWN((ROUNDDOWN(M11-tzolkinStartDate,0)+1)/13,0))*13),13))),((ROUND(1+(20*(((M11-tzolkinStartDate)/20)-(ROUNDDOWN((M11-tzolkinStartDate)/20,0)))),0))-(IF(((((ROUNDDOWN(M11-tzolkinStartDate,0)+1)/13)-ROUNDDOWN((ROUNDDOWN(M11-tzolkinStartDate,0)+1)/13,0))*13)>0,((((ROUNDDOWN(M11-tzolkinStartDate,0)+1)/13)-ROUNDDOWN((ROUNDDOWN(M11-tzolkinStartDate,0)+1)/13,0))*13),13)))),0)+1),glyphPosition,0)),"Manik") -> Etznab | O11: =(IF(((((ROUNDDOWN(M11-tzolkinStartDate,0)+1)/13)-ROUNDDOWN((ROUNDDOWN(M11-tzolkinStartDate,0)+1)/13,0))*13)>0,((((ROUNDDOWN(M11-tzolkinStartDate,0)+1)/13)-ROUNDDOWN((ROUNDDOWN(M11-tzolkinStartDate,0)+1)/13,0))*13),13)) -> 2 | P11: =INDEX(tzolkinGlyphs,MATCH(ROUND((((((M11-tzolkinStartDate)/20)-(ROUNDDOWN((M11-tzolkinStartDate)/20,0)))*20)+1),0),glyphPosition,0)) -> Cauac | R11: =INDEX(schedule!$C:$C,MATCH(1,($M11=schedule!$A:$A)*(R$2=schedule!$B:$B),0)) ->  | S11: =INDEX(schedule!$C:$C,MATCH(1,($M11=schedule!$A:$A)*(S$2=schedule!$B:$B),0)) ->  | T11: =INDEX(schedule!$C:$C,MATCH(1,($M11=schedule!$A:$A)*(T$2=schedule!$B:$B),0)) -> 
E12: =E11+1 -> 8 | M12: 2020-09-10 | N12: =IFERROR(INDEX(tzolkinGlyphs,MATCH((ROUND(IF(((ROUND(1+(20*(((M12-tzolkinStartDate)/20)-(ROUNDDOWN((M12-tzolkinStartDate)/20,0)))),0))-(IF(((((ROUNDDOWN(M12-tzolkinStartDate,0)+1)/13)-ROUNDDOWN((ROUNDDOWN(M12-tzolkinStartDate,0)+1)/13,0))*13)>0,((((ROUNDDOWN(M12-tzolkinStartDate,0)+1)/13)-ROUNDDOWN((ROUNDDOWN(M12-tzolkinStartDate,0)+1)/13,0))*13),13)))<0,20+((ROUND(1+(20*(((M12-tzolkinStartDate)/20)-(ROUNDDOWN((M12-tzolkinStartDate)/20,0)))),0))-(IF(((((ROUNDDOWN(M12-tzolkinStartDate,0)+1)/13)-ROUNDDOWN((ROUNDDOWN(M12-tzolkinStartDate,0)+1)/13,0))*13)>0,((((ROUNDDOWN(M12-tzolkinStartDate,0)+1)/13)-ROUNDDOWN((ROUNDDOWN(M12-tzolkinStartDate,0)+1)/13,0))*13),13))),((ROUND(1+(20*(((M12-tzolkinStartDate)/20)-(ROUNDDOWN((M12-tzolkinStartDate)/20,0)))),0))-(IF(((((ROUNDDOWN(M12-tzolkinStartDate,0)+1)/13)-ROUNDDOWN((ROUNDDOWN(M12-tzolkinStartDate,0)+1)/13,0))*13)>0,((((ROUNDDOWN(M12-tzolkinStartDate,0)+1)/13)-ROUNDDOWN((ROUNDDOWN(M12-tzolkinStartDate,0)+1)/13,0))*13),13)))),0)+1),glyphPosition,0)),"Manik") -> Etznab | O12: =(IF(((((ROUNDDOWN(M12-tzolkinStartDate,0)+1)/13)-ROUNDDOWN((ROUNDDOWN(M12-tzolkinStartDate,0)+1)/13,0))*13)>0,((((ROUNDDOWN(M12-tzolkinStartDate,0)+1)/13)-ROUNDDOWN((ROUNDDOWN(M12-tzolkinStartDate,0)+1)/13,0))*13),13)) -> 3 | P12: =INDEX(tzolkinGlyphs,MATCH(ROUND((((((M12-tzolkinStartDate)/20)-(ROUNDDOWN((M12-tzolkinStartDate)/20,0)))*20)+1),0),glyphPosition,0)) -> Ahau | R12: =INDEX(schedule!$C:$C,MATCH(1,($M12=schedule!$A:$A)*(R$2=schedule!$B:$B),0)) ->  | S12: =INDEX(schedule!$C:$C,MATCH(1,($M12=schedule!$A:$A)*(S$2=schedule!$B:$B),0)) ->  | T12: =INDEX(schedule!$C:$C,MATCH(1,($M12=schedule!$A:$A)*(T$2=schedule!$B:$B),0)) -> 
E13: 9 | M13: 2020-09-11 | N13: =IFERROR(INDEX(tzolkinGlyphs,MATCH((ROUND(IF(((ROUND(1+(20*(((M13-tzolkinStartDate)/20)-(ROUNDDOWN((M13-tzolkinStartDate)/20,0)))),0))-(IF(((((ROUNDDOWN(M13-tzolkinStartDate,0)+1)/13)-ROUNDDOWN((ROUNDDOWN(M13-tzolkinStartDate,0)+1)/13,0))*13)>0,((((ROUNDDOWN(M13-tzolkinStartDate,0)+1)/13)-ROUNDDOWN((ROUNDDOWN(M13-tzolkinStartDate,0)+1)/13,0))*13),13)))<0,20+((ROUND(1+(20*(((M13-tzolkinStartDate)/20)-(ROUNDDOWN((M13-tzolkinStartDate)/20,0)))),0))-(IF(((((ROUNDDOWN(M13-tzolkinStartDate,0)+1)/13)-ROUNDDOWN((ROUNDDOWN(M13-tzolkinStartDate,0)+1)/13,0))*13)>0,((((ROUNDDOWN(M13-tzolkinStartDate,0)+1)/13)-ROUNDDOWN((ROUNDDOWN(M13-tzolkinStartDate,0)+1)/13,0))*13),13))),((ROUND(1+(20*(((M13-tzolkinStartDate)/20)-(ROUNDDOWN((M13-tzolkinStartDate)/20,0)))),0))-(IF(((((ROUNDDOWN(M13-tzolkinStartDate,0)+1)/13)-ROUNDDOWN((ROUNDDOWN(M13-tzolkinStartDate,0)+1)/13,0))*13)>0,((((ROUNDDOWN(M13-tzolkinStartDate,0)+1)/13)-ROUNDDOWN((ROUNDDOWN(M13-tzolkinStartDate,0)+1)/13,0))*13),13)))),0)+1),glyphPosition,0)),"Manik") -> Etznab | O13: =(IF(((((ROUNDDOWN(M13-tzolkinStartDate,0)+1)/13)-ROUNDDOWN((ROUNDDOWN(M13-tzolkinStartDate,0)+1)/13,0))*13)>0,((((ROUNDDOWN(M13-tzolkinStartDate,0)+1)/13)-ROUNDDOWN((ROUNDDOWN(M13-tzolkinStartDate,0)+1)/13,0))*13),13)) -> 4 | P13: =INDEX(tzolkinGlyphs,MATCH(ROUND((((((M13-tzolkinStartDate)/20)-(ROUNDDOWN((M13-tzolkinStartDate)/20,0)))*20)+1),0),glyphPosition,0)) -> Imix | R13: =INDEX(schedule!$C:$C,MATCH(1,($M13=schedule!$A:$A)*(R$2=schedule!$B:$B),0)) ->  | S13: =INDEX(schedule!$C:$C,MATCH(1,($M13=schedule!$A:$A)*(S$2=schedule!$B:$B),0)) ->  | T13: =INDEX(schedule!$C:$C,MATCH(1,($M13=schedule!$A:$A)*(T$2=schedule!$B:$B),0)) -> 
E14: 10 | M14: 2020-09-12 | N14: =IFERROR(INDEX(tzolkinGlyphs,MATCH((ROUND(IF(((ROUND(1+(20*(((M14-tzolkinStartDate)/20)-(ROUNDDOWN((M14-tzolkinStartDate)/20,0)))),0))-(IF(((((ROUNDDOWN(M14-tzolkinStartDate,0)+1)/13)-ROUNDDOWN((ROUNDDOWN(M14-tzolkinStartDate,0)+1)/13,0))*13)>0,((((ROUNDDOWN(M14-tzolkinStartDate,0)+1)/13)-ROUNDDOWN((ROUNDDOWN(M14-tzolkinStartDate,0)+1)/13,0))*13),13)))<0,20+((ROUND(1+(20*(((M14-tzolkinStartDate)/20)-(ROUNDDOWN((M14-tzolkinStartDate)/20,0)))),0))-(IF(((((ROUNDDOWN(M14-tzolkinStartDate,0)+1)/13)-ROUNDDOWN((ROUNDDOWN(M14-tzolkinStartDate,0)+1)/13,0))*13)>0,((((ROUNDDOWN(M14-tzolkinStartDate,0)+1)/13)-ROUNDDOWN((ROUNDDOWN(M14-tzolkinStartDate,0)+1)/13,0))*13),13))),((ROUND(1+(20*(((M14-tzolkinStartDate)/20)-(ROUNDDOWN((M14-tzolkinStartDate)/20,0)))),0))-(IF(((((ROUNDDOWN(M14-tzolkinStartDate,0)+1)/13)-ROUNDDOWN((ROUNDDOWN(M14-tzolkinStartDate,0)+1)/13,0))*13)>0,((((ROUNDDOWN(M14-tzolkinStartDate,0)+1)/13)-ROUNDDOWN((ROUNDDOWN(M14-tzolkinStartDate,0)+1)/13,0))*13),13)))),0)+1),glyphPosition,0)),"Manik") -> Etznab | O14: =(IF(((((ROUNDDOWN(M14-tzolkinStartDate,0)+1)/13)-ROUNDDOWN((ROUNDDOWN(M14-tzolkinStartDate,0)+1)/13,0))*13)>0,((((ROUNDDOWN(M14-tzolkinStartDate,0)+1)/13)-ROUNDDOWN((ROUNDDOWN(M14-tzolkinStartDate,0)+1)/13,0))*13),13)) -> 5 | P14: =INDEX(tzolkinGlyphs,MATCH(ROUND((((((M14-tzolkinStartDate)/20)-(ROUNDDOWN((M14-tzolkinStartDate)/20,0)))*20)+1),0),glyphPosition,0)) -> Ik | R14: =INDEX(schedule!$C:$C,MATCH(1,($M14=schedule!$A:$A)*(R$2=schedule!$B:$B),0)) ->  | S14: =INDEX(schedule!$C:$C,MATCH(1,($M14=schedule!$A:$A)*(S$2=schedule!$B:$B),0)) ->  | T14: =INDEX(schedule!$C:$C,MATCH(1,($M14=schedule!$A:$A)*(T$2=schedule!$B:$B),0)) -> 
E15: 11 | M15: 2020-09-13 | N15: =IFERROR(INDEX(tzolkinGlyphs,MATCH((ROUND(IF(((ROUND(1+(20*(((M15-tzolkinStartDate)/20)-(ROUNDDOWN((M15-tzolkinStartDate)/20,0)))),0))-(IF(((((ROUNDDOWN(M15-tzolkinStartDate,0)+1)/13)-ROUNDDOWN((ROUNDDOWN(M15-tzolkinStartDate,0)+1)/13,0))*13)>0,((((ROUNDDOWN(M15-tzolkinStartDate,0)+1)/13)-ROUNDDOWN((ROUNDDOWN(M15-tzolkinStartDate,0)+1)/13,0))*13),13)))<0,20+((ROUND(1+(20*(((M15-tzolkinStartDate)/20)-(ROUNDDOWN((M15-tzolkinStartDate)/20,0)))),0))-(IF(((((ROUNDDOWN(M15-tzolkinStartDate,0)+1)/13)-ROUNDDOWN((ROUNDDOWN(M15-tzolkinStartDate,0)+1)/13,0))*13)>0,((((ROUNDDOWN(M15-tzolkinStartDate,0)+1)/13)-ROUNDDOWN((ROUNDDOWN(M15-tzolkinStartDate,0)+1)/13,0))*13),13))),((ROUND(1+(20*(((M15-tzolkinStartDate)/20)-(ROUNDDOWN((M15-tzolkinStartDate)/20,0)))),0))-(IF(((((ROUNDDOWN(M15-tzolkinStartDate,0)+1)/13)-ROUNDDOWN((ROUNDDOWN(M15-tzolkinStartDate,0)+1)/13,0))*13)>0,((((ROUNDDOWN(M15-tzolkinStartDate,0)+1)/13)-ROUNDDOWN((ROUNDDOWN(M15-tzolkinStartDate,0)+1)/13,0))*13),13)))),0)+1),glyphPosition,0)),"Manik") -> Etznab | O15: =(IF(((((ROUNDDOWN(M15-tzolkinStartDate,0)+1)/13)-ROUNDDOWN((ROUNDDOWN(M15-tzolkinStartDate,0)+1)/13,0))*13)>0,((((ROUNDDOWN(M15-tzolkinStartDate,0)+1)/13)-ROUNDDOWN((ROUNDDOWN(M15-tzolkinStartDate,0)+1)/13,0))*13),13)) -> 6 | P15: =INDEX(tzolkinGlyphs,MATCH(ROUND((((((M15-tzolkinStartDate)/20)-(ROUNDDOWN((M15-tzolkinStartDate)/20,0)))*20)+1),0),glyphPosition,0)) -> Akbal | R15: =INDEX(schedule!$C:$C,MATCH(1,($M15=schedule!$A:$A)*(R$2=schedule!$B:$B),0)) ->  | S15: =INDEX(schedule!$C:$C,MATCH(1,($M15=schedule!$A:$A)*(S$2=schedule!$B:$B),0)) ->  | T15: =INDEX(schedule!$C:$C,MATCH(1,($M15=schedule!$A:$A)*(T$2=schedule!$B:$B),0)) -> 
E16: 12 | M16: 2020-09-14 | N16: =IFERROR(INDEX(tzolkinGlyphs,MATCH((ROUND(IF(((ROUND(1+(20*(((M16-tzolkinStartDate)/20)-(ROUNDDOWN((M16-tzolkinStartDate)/20,0)))),0))-(IF(((((ROUNDDOWN(M16-tzolkinStartDate,0)+1)/13)-ROUNDDOWN((ROUNDDOWN(M16-tzolkinStartDate,0)+1)/13,0))*13)>0,((((ROUNDDOWN(M16-tzolkinStartDate,0)+1)/13)-ROUNDDOWN((ROUNDDOWN(M16-tzolkinStartDate,0)+1)/13,0))*13),13)))<0,20+((ROUND(1+(20*(((M16-tzolkinStartDate)/20)-(ROUNDDOWN((M16-tzolkinStartDate)/20,0)))),0))-(IF(((((ROUNDDOWN(M16-tzolkinStartDate,0)+1)/13)-ROUNDDOWN((ROUNDDOWN(M16-tzolkinStartDate,0)+1)/13,0))*13)>0,((((ROUNDDOWN(M16-tzolkinStartDate,0)+1)/13)-ROUNDDOWN((ROUNDDOWN(M16-tzolkinStartDate,0)+1)/13,0))*13),13))),((ROUND(1+(20*(((M16-tzolkinStartDate)/20)-(ROUNDDOWN((M16-tzolkinStartDate)/20,0)))),0))-(IF(((((ROUNDDOWN(M16-tzolkinStartDate,0)+1)/13)-ROUNDDOWN((ROUNDDOWN(M16-tzolkinStartDate,0)+1)/13,0))*13)>0,((((ROUNDDOWN(M16-tzolkinStartDate,0)+1)/13)-ROUNDDOWN((ROUNDDOWN(M16-tzolkinStartDate,0)+1)/13,0))*13),13)))),0)+1),glyphPosition,0)),"Manik") -> Etznab | O16: =(IF(((((ROUNDDOWN(M16-tzolkinStartDate,0)+1)/13)-ROUNDDOWN((ROUNDDOWN(M16-tzolkinStartDate,0)+1)/13,0))*13)>0,((((ROUNDDOWN(M16-tzolkinStartDate,0)+1)/13)-ROUNDDOWN((ROUNDDOWN(M16-tzolkinStartDate,0)+1)/13,0))*13),13)) -> 7 | P16: =INDEX(tzolkinGlyphs,MATCH(ROUND((((((M16-tzolkinStartDate)/20)-(ROUNDDOWN((M16-tzolkinStartDate)/20,0)))*20)+1),0),glyphPosition,0)) -> Kan | R16: =INDEX(schedule!$C:$C,MATCH(1,($M16=schedule!$A:$A)*(R$2=schedule!$B:$B),0)) ->  | S16: =INDEX(schedule!$C:$C,MATCH(1,($M16=schedule!$A:$A)*(S$2=schedule!$B:$B),0)) ->  | T16: =INDEX(schedule!$C:$C,MATCH(1,($M16=schedule!$A:$A)*(T$2=schedule!$B:$B),0)) -> 
E17: 13 | M17: 2020-09-15 | N17: =IFERROR(INDEX(tzolkinGlyphs,MATCH((ROUND(IF(((ROUND(1+(20*(((M17-tzolkinStartDate)/20)-(ROUNDDOWN((M17-tzolkinStartDate)/20,0)))),0))-(IF(((((ROUNDDOWN(M17-tzolkinStartDate,0)+1)/13)-ROUNDDOWN((ROUNDDOWN(M17-tzolkinStartDate,0)+1)/13,0))*13)>0,((((ROUNDDOWN(M17-tzolkinStartDate,0)+1)/13)-ROUNDDOWN((ROUNDDOWN(M17-tzolkinStartDate,0)+1)/13,0))*13),13)))<0,20+((ROUND(1+(20*(((M17-tzolkinStartDate)/20)-(ROUNDDOWN((M17-tzolkinStartDate)/20,0)))),0))-(IF(((((ROUNDDOWN(M17-tzolkinStartDate,0)+1)/13)-ROUNDDOWN((ROUNDDOWN(M17-tzolkinStartDate,0)+1)/13,0))*13)>0,((((ROUNDDOWN(M17-tzolkinStartDate,0)+1)/13)-ROUNDDOWN((ROUNDDOWN(M17-tzolkinStartDate,0)+1)/13,0))*13),13))),((ROUND(1+(20*(((M17-tzolkinStartDate)/20)-(ROUNDDOWN((M17-tzolkinStartDate)/20,0)))),0))-(IF(((((ROUNDDOWN(M17-tzolkinStartDate,0)+1)/13)-ROUNDDOWN((ROUNDDOWN(M17-tzolkinStartDate,0)+1)/13,0))*13)>0,((((ROUNDDOWN(M17-tzolkinStartDate,0)+1)/13)-ROUNDDOWN((ROUNDDOWN(M17-tzolkinStartDate,0)+1)/13,0))*13),13)))),0)+1),glyphPosition,0)),"Manik") -> Etznab | O17: =(IF(((((ROUNDDOWN(M17-tzolkinStartDate,0)+1)/13)-ROUNDDOWN((ROUNDDOWN(M17-tzolkinStartDate,0)+1)/13,0))*13)>0,((((ROUNDDOWN(M17-tzolkinStartDate,0)+1)/13)-ROUNDDOWN((ROUNDDOWN(M17-tzolkinStartDate,0)+1)/13,0))*13),13)) -> 8 | P17: =INDEX(tzolkinGlyphs,MATCH(ROUND((((((M17-tzolkinStartDate)/20)-(ROUNDDOWN((M17-tzolkinStartDate)/20,0)))*20)+1),0),glyphPosition,0)) -> Chicchan | R17: =INDEX(schedule!$C:$C,MATCH(1,($M17=schedule!$A:$A)*(R$2=schedule!$B:$B),0)) ->  | S17: =INDEX(schedule!$C:$C,MATCH(1,($M17=schedule!$A:$A)*(S$2=schedule!$B:$B),0)) ->  | T17: =INDEX(schedule!$C:$C,MATCH(1,($M17=schedule!$A:$A)*(T$2=schedule!$B:$B),0)) -> 
E18: 14 | M18: 2020-09-16 | N18: =IFERROR(INDEX(tzolkinGlyphs,MATCH((ROUND(IF(((ROUND(1+(20*(((M18-tzolkinStartDate)/20)-(ROUNDDOWN((M18-tzolkinStartDate)/20,0)))),0))-(IF(((((ROUNDDOWN(M18-tzolkinStartDate,0)+1)/13)-ROUNDDOWN((ROUNDDOWN(M18-tzolkinStartDate,0)+1)/13,0))*13)>0,((((ROUNDDOWN(M18-tzolkinStartDate,0)+1)/13)-ROUNDDOWN((ROUNDDOWN(M18-tzolkinStartDate,0)+1)/13,0))*13),13)))<0,20+((ROUND(1+(20*(((M18-tzolkinStartDate)/20)-(ROUNDDOWN((M18-tzolkinStartDate)/20,0)))),0))-(IF(((((ROUNDDOWN(M18-tzolkinStartDate,0)+1)/13)-ROUNDDOWN((ROUNDDOWN(M18-tzolkinStartDate,0)+1)/13,0))*13)>0,((((ROUNDDOWN(M18-tzolkinStartDate,0)+1)/13)-ROUNDDOWN((ROUNDDOWN(M18-tzolkinStartDate,0)+1)/13,0))*13),13))),((ROUND(1+(20*(((M18-tzolkinStartDate)/20)-(ROUNDDOWN((M18-tzolkinStartDate)/20,0)))),0))-(IF(((((ROUNDDOWN(M18-tzolkinStartDate,0)+1)/13)-ROUNDDOWN((ROUNDDOWN(M18-tzolkinStartDate,0)+1)/13,0))*13)>0,((((ROUNDDOWN(M18-tzolkinStartDate,0)+1)/13)-ROUNDDOWN((ROUNDDOWN(M18-tzolkinStartDate,0)+1)/13,0))*13),13)))),0)+1),glyphPosition,0)),"Manik") -> Etznab | O18: =(IF(((((ROUNDDOWN(M18-tzolkinStartDate,0)+1)/13)-ROUNDDOWN((ROUNDDOWN(M18-tzolkinStartDate,0)+1)/13,0))*13)>0,((((ROUNDDOWN(M18-tzolkinStartDate,0)+1)/13)-ROUNDDOWN((ROUNDDOWN(M18-tzolkinStartDate,0)+1)/13,0))*13),13)) -> 9 | P18: =INDEX(tzolkinGlyphs,MATCH(ROUND((((((M18-tzolkinStartDate)/20)-(ROUNDDOWN((M18-tzolkinStartDate)/20,0)))*20)+1),0),glyphPosition,0)) -> Cimi | R18: =INDEX(schedule!$C:$C,MATCH(1,($M18=schedule!$A:$A)*(R$2=schedule!$B:$B),0)) ->  | S18: =INDEX(schedule!$C:$C,MATCH(1,($M18=schedule!$A:$A)*(S$2=schedule!$B:$B),0)) ->  | T18: =INDEX(schedule!$C:$C,MATCH(1,($M18=schedule!$A:$A)*(T$2=schedule!$B:$B),0)) -> 
B19: Data | C19: You can put any information | E19: 15 | M19: 2020-09-17 | N19: =IFERROR(INDEX(tzolkinGlyphs,MATCH((ROUND(IF(((ROUND(1+(20*(((M19-tzolkinStartDate)/20)-(ROUNDDOWN((M19-tzolkinStartDate)/20,0)))),0))-(IF(((((ROUNDDOWN(M19-tzolkinStartDate,0)+1)/13)-ROUNDDOWN((ROUNDDOWN(M19-tzolkinStartDate,0)+1)/13,0))*13)>0,((((ROUNDDOWN(M19-tzolkinStartDate,0)+1)/13)-ROUNDDOWN((ROUNDDOWN(M19-tzolkinStartDate,0)+1)/13,0))*13),13)))<0,20+((ROUND(1+(20*(((M19-tzolkinStartDate)/20)-(ROUNDDOWN((M19-tzolkinStartDate)/20,0)))),0))-(IF(((((ROUNDDOWN(M19-tzolkinStartDate,0)+1)/13)-ROUNDDOWN((ROUNDDOWN(M19-tzolkinStartDate,0)+1)/13,0))*13)>0,((((ROUNDDOWN(M19-tzolkinStartDate,0)+1)/13)-ROUNDDOWN((ROUNDDOWN(M19-tzolkinStartDate,0)+1)/13,0))*13),13))),((ROUND(1+(20*(((M19-tzolkinStartDate)/20)-(ROUNDDOWN((M19-tzolkinStartDate)/20,0)))),0))-(IF(((((ROUNDDOWN(M19-tzolkinStartDate,0)+1)/13)-ROUNDDOWN((ROUNDDOWN(M19-tzolkinStartDate,0)+1)/13,0))*13)>0,((((ROUNDDOWN(M19-tzolkinStartDate,0)+1)/13)-ROUNDDOWN((ROUNDDOWN(M19-tzolkinStartDate,0)+1)/13,0))*13),13)))),0)+1),glyphPosition,0)),"Manik") -> Etznab | O19: =(IF(((((ROUNDDOWN(M19-tzolkinStartDate,0)+1)/13)-ROUNDDOWN((ROUNDDOWN(M19-tzolkinStartDate,0)+1)/13,0))*13)>0,((((ROUNDDOWN(M19-tzolkinStartDate,0)+1)/13)-ROUNDDOWN((ROUNDDOWN(M19-tzolkinStartDate,0)+1)/13,0))*13),13)) -> 10 | P19: =INDEX(tzolkinGlyphs,MATCH(ROUND((((((M19-tzolkinStartDate)/20)-(ROUNDDOWN((M19-tzolkinStartDate)/20,0)))*20)+1),0),glyphPosition,0)) -> Manik | R19: =INDEX(schedule!$C:$C,MATCH(1,($M19=schedule!$A:$A)*(R$2=schedule!$B:$B),0)) ->  | S19: =INDEX(schedule!$C:$C,MATCH(1,($M19=schedule!$A:$A)*(S$2=schedule!$B:$B),0)) ->  | T19: =INDEX(schedule!$C:$C,MATCH(1,($M19=schedule!$A:$A)*(T$2=schedule!$B:$B),0)) -> 
B20: Data 2 | C20: you want to track in these | E20: 16 | M20: 2020-09-18 | N20: =IFERROR(INDEX(tzolkinGlyphs,MATCH((ROUND(IF(((ROUND(1+(20*(((M20-tzolkinStartDate)/20)-(ROUNDDOWN((M20-tzolkinStartDate)/20,0)))),0))-(IF(((((ROUNDDOWN(M20-tzolkinStartDate,0)+1)/13)-ROUNDDOWN((ROUNDDOWN(M20-tzolkinStartDate,0)+1)/13,0))*13)>0,((((ROUNDDOWN(M20-tzolkinStartDate,0)+1)/13)-ROUNDDOWN((ROUNDDOWN(M20-tzolkinStartDate,0)+1)/13,0))*13),13)))<0,20+((ROUND(1+(20*(((M20-tzolkinStartDate)/20)-(ROUNDDOWN((M20-tzolkinStartDate)/20,0)))),0))-(IF(((((ROUNDDOWN(M20-tzolkinStartDate,0)+1)/13)-ROUNDDOWN((ROUNDDOWN(M20-tzolkinStartDate,0)+1)/13,0))*13)>0,((((ROUNDDOWN(M20-tzolkinStartDate,0)+1)/13)-ROUNDDOWN((ROUNDDOWN(M20-tzolkinStartDate,0)+1)/13,0))*13),13))),((ROUND(1+(20*(((M20-tzolkinStartDate)/20)-(ROUNDDOWN((M20-tzolkinStartDate)/20,0)))),0))-(IF(((((ROUNDDOWN(M20-tzolkinStartDate,0)+1)/13)-ROUNDDOWN((ROUNDDOWN(M20-tzolkinStartDate,0)+1)/13,0))*13)>0,((((ROUNDDOWN(M20-tzolkinStartDate,0)+1)/13)-ROUNDDOWN((ROUNDDOWN(M20-tzolkinStartDate,0)+1)/13,0))*13),13)))),0)+1),glyphPosition,0)),"Manik") -> Etznab | O20: =(IF(((((ROUNDDOWN(M20-tzolkinStartDate,0)+1)/13)-ROUNDDOWN((ROUNDDOWN(M20-tzolkinStartDate,0)+1)/13,0))*13)>0,((((ROUNDDOWN(M20-tzolkinStartDate,0)+1)/13)-ROUNDDOWN((ROUNDDOWN(M20-tzolkinStartDate,0)+1)/13,0))*13),13)) -> 11 | P20: =INDEX(tzolkinGlyphs,MATCH(ROUND((((((M20-tzolkinStartDate)/20)-(ROUNDDOWN((M20-tzolkinStartDate)/20,0)))*20)+1),0),glyphPosition,0)) -> Lamat | R20: =INDEX(schedule!$C:$C,MATCH(1,($M20=schedule!$A:$A)*(R$2=schedule!$B:$B),0)) ->  | S20: =INDEX(schedule!$C:$C,MATCH(1,($M20=schedule!$A:$A)*(S$2=schedule!$B:$B),0)) ->  | T20: =INDEX(schedule!$C:$C,MATCH(1,($M20=schedule!$A:$A)*(T$2=schedule!$B:$B),0)) -> 
B21: (change me) | C21: fields. Mood, weight, etc. | E21: 17 | M21: 2020-09-19 | N21: =IFERROR(INDEX(tzolkinGlyphs,MATCH((ROUND(IF(((ROUND(1+(20*(((M21-tzolkinStartDate)/20)-(ROUNDDOWN((M21-tzolkinStartDate)/20,0)))),0))-(IF(((((ROUNDDOWN(M21-tzolkinStartDate,0)+1)/13)-ROUNDDOWN((ROUNDDOWN(M21-tzolkinStartDate,0)+1)/13,0))*13)>0,((((ROUNDDOWN(M21-tzolkinStartDate,0)+1)/13)-ROUNDDOWN((ROUNDDOWN(M21-tzolkinStartDate,0)+1)/13,0))*13),13)))<0,20+((ROUND(1+(20*(((M21-tzolkinStartDate)/20)-(ROUNDDOWN((M21-tzolkinStartDate)/20,0)))),0))-(IF(((((ROUNDDOWN(M21-tzolkinStartDate,0)+1)/13)-ROUNDDOWN((ROUNDDOWN(M21-tzolkinStartDate,0)+1)/13,0))*13)>0,((((ROUNDDOWN(M21-tzolkinStartDate,0)+1)/13)-ROUNDDOWN((ROUNDDOWN(M21-tzolkinStartDate,0)+1)/13,0))*13),13))),((ROUND(1+(20*(((M21-tzolkinStartDate)/20)-(ROUNDDOWN((M21-tzolkinStartDate)/20,0)))),0))-(IF(((((ROUNDDOWN(M21-tzolkinStartDate,0)+1)/13)-ROUNDDOWN((ROUNDDOWN(M21-tzolkinStartDate,0)+1)/13,0))*13)>0,((((ROUNDDOWN(M21-tzolkinStartDate,0)+1)/13)-ROUNDDOWN((ROUNDDOWN(M21-tzolkinStartDate,0)+1)/13,0))*13),13)))),0)+1),glyphPosition,0)),"Manik") -> Etznab | O21: =(IF(((((ROUNDDOWN(M21-tzolkinStartDate,0)+1)/13)-ROUNDDOWN((ROUNDDOWN(M21-tzolkinStartDate,0)+1)/13,0))*13)>0,((((ROUNDDOWN(M21-tzolkinStartDate,0)+1)/13)-ROUNDDOWN((ROUNDDOWN(M21-tzolkinStartDate,0)+1)/13,0))*13),13)) -> 12 | P21: =INDEX(tzolkinGlyphs,MATCH(ROUND((((((M21-tzolkinStartDate)/20)-(ROUNDDOWN((M21-tzolkinStartDate)/20,0)))*20)+1),0),glyphPosition,0)) -> Muluc | R21: =INDEX(schedule!$C:$C,MATCH(1,($M21=schedule!$A:$A)*(R$2=schedule!$B:$B),0)) ->  | S21: =INDEX(schedule!$C:$C,MATCH(1,($M21=schedule!$A:$A)*(S$2=schedule!$B:$B),0)) ->  | T21: =INDEX(schedule!$C:$C,MATCH(1,($M21=schedule!$A:$A)*(T$2=schedule!$B:$B),0)) -> 
E22: 18 | M22: 2020-09-20 | N22: =IFERROR(INDEX(tzolkinGlyphs,MATCH((ROUND(IF(((ROUND(1+(20*(((M22-tzolkinStartDate)/20)-(ROUNDDOWN((M22-tzolkinStartDate)/20,0)))),0))-(IF(((((ROUNDDOWN(M22-tzolkinStartDate,0)+1)/13)-ROUNDDOWN((ROUNDDOWN(M22-tzolkinStartDate,0)+1)/13,0))*13)>0,((((ROUNDDOWN(M22-tzolkinStartDate,0)+1)/13)-ROUNDDOWN((ROUNDDOWN(M22-tzolkinStartDate,0)+1)/13,0))*13),13)))<0,20+((ROUND(1+(20*(((M22-tzolkinStartDate)/20)-(ROUNDDOWN((M22-tzolkinStartDate)/20,0)))),0))-(IF(((((ROUNDDOWN(M22-tzolkinStartDate,0)+1)/13)-ROUNDDOWN((ROUNDDOWN(M22-tzolkinStartDate,0)+1)/13,0))*13)>0,((((ROUNDDOWN(M22-tzolkinStartDate,0)+1)/13)-ROUNDDOWN((ROUNDDOWN(M22-tzolkinStartDate,0)+1)/13,0))*13),13))),((ROUND(1+(20*(((M22-tzolkinStartDate)/20)-(ROUNDDOWN((M22-tzolkinStartDate)/20,0)))),0))-(IF(((((ROUNDDOWN(M22-tzolkinStartDate,0)+1)/13)-ROUNDDOWN((ROUNDDOWN(M22-tzolkinStartDate,0)+1)/13,0))*13)>0,((((ROUNDDOWN(M22-tzolkinStartDate,0)+1)/13)-ROUNDDOWN((ROUNDDOWN(M22-tzolkinStartDate,0)+1)/13,0))*13),13)))),0)+1),glyphPosition,0)),"Manik") -> Etznab | O22: =(IF(((((ROUNDDOWN(M22-tzolkinStartDate,0)+1)/13)-ROUNDDOWN((ROUNDDOWN(M22-tzolkinStartDate,0)+1)/13,0))*13)>0,((((ROUNDDOWN(M22-tzolkinStartDate,0)+1)/13)-ROUNDDOWN((ROUNDDOWN(M22-tzolkinStartDate,0)+1)/13,0))*13),13)) -> 13 | P22: =INDEX(tzolkinGlyphs,MATCH(ROUND((((((M22-tzolkinStartDate)/20)-(ROUNDDOWN((M22-tzolkinStartDate)/20,0)))*20)+1),0),glyphPosition,0)) -> Oc | R22: =INDEX(schedule!$C:$C,MATCH(1,($M22=schedule!$A:$A)*(R$2=schedule!$B:$B),0)) ->  | S22: =INDEX(schedule!$C:$C,MATCH(1,($M22=schedule!$A:$A)*(S$2=schedule!$B:$B),0)) ->  | T22: =INDEX(schedule!$C:$C,MATCH(1,($M22=schedule!$A:$A)*(T$2=schedule!$B:$B),0)) -> 
E23: 19 | M23: 2020-09-21 | N23: =IFERROR(INDEX(tzolkinGlyphs,MATCH((ROUND(IF(((ROUND(1+(20*(((M23-tzolkinStartDate)/20)-(ROUNDDOWN((M23-tzolkinStartDate)/20,0)))),0))-(IF(((((ROUNDDOWN(M23-tzolkinStartDate,0)+1)/13)-ROUNDDOWN((ROUNDDOWN(M23-tzolkinStartDate,0)+1)/13,0))*13)>0,((((ROUNDDOWN(M23-tzolkinStartDate,0)+1)/13)-ROUNDDOWN((ROUNDDOWN(M23-tzolkinStartDate,0)+1)/13,0))*13),13)))<0,20+((ROUND(1+(20*(((M23-tzolkinStartDate)/20)-(ROUNDDOWN((M23-tzolkinStartDate)/20,0)))),0))-(IF(((((ROUNDDOWN(M23-tzolkinStartDate,0)+1)/13)-ROUNDDOWN((ROUNDDOWN(M23-tzolkinStartDate,0)+1)/13,0))*13)>0,((((ROUNDDOWN(M23-tzolkinStartDate,0)+1)/13)-ROUNDDOWN((ROUNDDOWN(M23-tzolkinStartDate,0)+1)/13,0))*13),13))),((ROUND(1+(20*(((M23-tzolkinStartDate)/20)-(ROUNDDOWN((M23-tzolkinStartDate)/20,0)))),0))-(IF(((((ROUNDDOWN(M23-tzolkinStartDate,0)+1)/13)-ROUNDDOWN((ROUNDDOWN(M23-tzolkinStartDate,0)+1)/13,0))*13)>0,((((ROUNDDOWN(M23-tzolkinStartDate,0)+1)/13)-ROUNDDOWN((ROUNDDOWN(M23-tzolkinStartDate,0)+1)/13,0))*13),13)))),0)+1),glyphPosition,0)),"Manik") -> Chuen | O23: =(IF(((((ROUNDDOWN(M23-tzolkinStartDate,0)+1)/13)-ROUNDDOWN((ROUNDDOWN(M23-tzolkinStartDate,0)+1)/13,0))*13)>0,((((ROUNDDOWN(M23-tzolkinStartDate,0)+1)/13)-ROUNDDOWN((ROUNDDOWN(M23-tzolkinStartDate,0)+1)/13,0))*13),13)) -> 1 | P23: =INDEX(tzolkinGlyphs,MATCH(ROUND((((((M23-tzolkinStartDate)/20)-(ROUNDDOWN((M23-tzolkinStartDate)/20,0)))*20)+1),0),glyphPosition,0)) -> Chuen | R23: =INDEX(schedule!$C:$C,MATCH(1,($M23=schedule!$A:$A)*(R$2=schedule!$B:$B),0)) ->  | S23: =INDEX(schedule!$C:$C,MATCH(1,($M23=schedule!$A:$A)*(S$2=schedule!$B:$B),0)) ->  | T23: =INDEX(schedule!$C:$C,MATCH(1,($M23=schedule!$A:$A)*(T$2=schedule!$B:$B),0)) -> 
B24: Tzolkin | E24: 20 | M24: 2020-09-22 | N24: =IFERROR(INDEX(tzolkinGlyphs,MATCH((ROUND(IF(((ROUND(1+(20*(((M24-tzolkinStartDate)/20)-(ROUNDDOWN((M24-tzolkinStartDate)/20,0)))),0))-(IF(((((ROUNDDOWN(M24-tzolkinStartDate,0)+1)/13)-ROUNDDOWN((ROUNDDOWN(M24-tzolkinStartDate,0)+1)/13,0))*13)>0,((((ROUNDDOWN(M24-tzolkinStartDate,0)+1)/13)-ROUNDDOWN((ROUNDDOWN(M24-tzolkinStartDate,0)+1)/13,0))*13),13)))<0,20+((ROUND(1+(20*(((M24-tzolkinStartDate)/20)-(ROUNDDOWN((M24-tzolkinStartDate)/20,0)))),0))-(IF(((((ROUNDDOWN(M24-tzolkinStartDate,0)+1)/13)-ROUNDDOWN((ROUNDDOWN(M24-tzolkinStartDate,0)+1)/13,0))*13)>0,((((ROUNDDOWN(M24-tzolkinStartDate,0)+1)/13)-ROUNDDOWN((ROUNDDOWN(M24-tzolkinStartDate,0)+1)/13,0))*13),13))),((ROUND(1+(20*(((M24-tzolkinStartDate)/20)-(ROUNDDOWN((M24-tzolkinStartDate)/20,0)))),0))-(IF(((((ROUNDDOWN(M24-tzolkinStartDate,0)+1)/13)-ROUNDDOWN((ROUNDDOWN(M24-tzolkinStartDate,0)+1)/13,0))*13)>0,((((ROUNDDOWN(M24-tzolkinStartDate,0)+1)/13)-ROUNDDOWN((ROUNDDOWN(M24-tzolkinStartDate,0)+1)/13,0))*13),13)))),0)+1),glyphPosition,0)),"Manik") -> Chuen | O24: =(IF(((((ROUNDDOWN(M24-tzolkinStartDate,0)+1)/13)-ROUNDDOWN((ROUNDDOWN(M24-tzolkinStartDate,0)+1)/13,0))*13)>0,((((ROUNDDOWN(M24-tzolkinStartDate,0)+1)/13)-ROUNDDOWN((ROUNDDOWN(M24-tzolkinStartDate,0)+1)/13,0))*13),13)) -> 2 | P24: =INDEX(tzolkinGlyphs,MATCH(ROUND((((((M24-tzolkinStartDate)/20)-(ROUNDDOWN((M24-tzolkinStartDate)/20,0)))*20)+1),0),glyphPosition,0)) -> Eb | R24: =INDEX(schedule!$C:$C,MATCH(1,($M24=schedule!$A:$A)*(R$2=schedule!$B:$B),0)) ->  | S24: =INDEX(schedule!$C:$C,MATCH(1,($M24=schedule!$A:$A)*(S$2=schedule!$B:$B),0)) ->  | T24: =INDEX(schedule!$C:$C,MATCH(1,($M24=schedule!$A:$A)*(T$2=schedule!$B:$B),0)) -> 
B25: Wave | C25: =wave -> Etznab | E25: 21 | M25: 2020-09-23 | N25: =IFERROR(INDEX(tzolkinGlyphs,MATCH((ROUND(IF(((ROUND(1+(20*(((M25-tzolkinStartDate)/20)-(ROUNDDOWN((M25-tzolkinStartDate)/20,0)))),0))-(IF(((((ROUNDDOWN(M25-tzolkinStartDate,0)+1)/13)-ROUNDDOWN((ROUNDDOWN(M25-tzolkinStartDate,0)+1)/13,0))*13)>0,((((ROUNDDOWN(M25-tzolkinStartDate,0)+1)/13)-ROUNDDOWN((ROUNDDOWN(M25-tzolkinStartDate,0)+1)/13,0))*13),13)))<0,20+((ROUND(1+(20*(((M25-tzolkinStartDate)/20)-(ROUNDDOWN((M25-tzolkinStartDate)/20,0)))),0))-(IF(((((ROUNDDOWN(M25-tzolkinStartDate,0)+1)/13)-ROUNDDOWN((ROUNDDOWN(M25-tzolkinStartDate,0)+1)/13,0))*13)>0,((((ROUNDDOWN(M25-tzolkinStartDate,0)+1)/13)-ROUNDDOWN((ROUNDDOWN(M25-tzolkinStartDate,0)+1)/13,0))*13),13))),((ROUND(1+(20*(((M25-tzolkinStartDate)/20)-(ROUNDDOWN((M25-tzolkinStartDate)/20,0)))),0))-(IF(((((ROUNDDOWN(M25-tzolkinStartDate,0)+1)/13)-ROUNDDOWN((ROUNDDOWN(M25-tzolkinStartDate,0)+1)/13,0))*13)>0,((((ROUNDDOWN(M25-tzolkinStartDate,0)+1)/13)-ROUNDDOWN((ROUNDDOWN(M25-tzolkinStartDate,0)+1)/13,0))*13),13)))),0)+1),glyphPosition,0)),"Manik") -> Chuen | O25: =(IF(((((ROUNDDOWN(M25-tzolkinStartDate,0)+1)/13)-ROUNDDOWN((ROUNDDOWN(M25-tzolkinStartDate,0)+1)/13,0))*13)>0,((((ROUNDDOWN(M25-tzolkinStartDate,0)+1)/13)-ROUNDDOWN((ROUNDDOWN(M25-tzolkinStartDate,0)+1)/13,0))*13),13)) -> 3 | P25: =INDEX(tzolkinGlyphs,MATCH(ROUND((((((M25-tzolkinStartDate)/20)-(ROUNDDOWN((M25-tzolkinStartDate)/20,0)))*20)+1),0),glyphPosition,0)) -> Ben | R25: =INDEX(schedule!$C:$C,MATCH(1,($M25=schedule!$A:$A)*(R$2=schedule!$B:$B),0)) ->  | S25: =INDEX(schedule!$C:$C,MATCH(1,($M25=schedule!$A:$A)*(S$2=schedule!$B:$B),0)) ->  | T25: =INDEX(schedule!$C:$C,MATCH(1,($M25=schedule!$A:$A)*(T$2=schedule!$B:$B),0)) -> 
B26: Tone | C26: =(IF(((((ROUNDDOWN(ROUNDDOWN(punchDate,0)-tzolkinStartDate,0)+1)/13)-ROUNDDOWN((ROUNDDOWN(ROUNDDOWN(punchDate,0)-tzolkinStartDate,0)+1)/13,0))*13)>0,((((ROUNDDOWN(ROUNDDOWN(punchDate,0)-tzolkinStartDate,0)+1)/13)-ROUNDDOWN((ROUNDDOWN(ROUNDDOWN(punchDate,0)-tzolkinStartDate,0)+1)/13,0))*13),13)) -> 12 | E26: =E25+1 -> 22 | M26: 2020-09-24 | N26: =IFERROR(INDEX(tzolkinGlyphs,MATCH((ROUND(IF(((ROUND(1+(20*(((M26-tzolkinStartDate)/20)-(ROUNDDOWN((M26-tzolkinStartDate)/20,0)))),0))-(IF(((((ROUNDDOWN(M26-tzolkinStartDate,0)+1)/13)-ROUNDDOWN((ROUNDDOWN(M26-tzolkinStartDate,0)+1)/13,0))*13)>0,((((ROUNDDOWN(M26-tzolkinStartDate,0)+1)/13)-ROUNDDOWN((ROUNDDOWN(M26-tzolkinStartDate,0)+1)/13,0))*13),13)))<0,20+((ROUND(1+(20*(((M26-tzolkinStartDate)/20)-(ROUNDDOWN((M26-tzolkinStartDate)/20,0)))),0))-(IF(((((ROUNDDOWN(M26-tzolkinStartDate,0)+1)/13)-ROUNDDOWN((ROUNDDOWN(M26-tzolkinStartDate,0)+1)/13,0))*13)>0,((((ROUNDDOWN(M26-tzolkinStartDate,0)+1)/13)-ROUNDDOWN((ROUNDDOWN(M26-tzolkinStartDate,0)+1)/13,0))*13),13))),((ROUND(1+(20*(((M26-tzolkinStartDate)/20)-(ROUNDDOWN((M26-tzolkinStartDate)/20,0)))),0))-(IF(((((ROUNDDOWN(M26-tzolkinStartDate,0)+1)/13)-ROUNDDOWN((ROUNDDOWN(M26-tzolkinStartDate,0)+1)/13,0))*13)>0,((((ROUNDDOWN(M26-tzolkinStartDate,0)+1)/13)-ROUNDDOWN((ROUNDDOWN(M26-tzolkinStartDate,0)+1)/13,0))*13),13)))),0)+1),glyphPosition,0)),"Manik") -> Chuen | O26: =(IF(((((ROUNDDOWN(M26-tzolkinStartDate,0)+1)/13)-ROUNDDOWN((ROUNDDOWN(M26-tzolkinStartDate,0)+1)/13,0))*13)>0,((((ROUNDDOWN(M26-tzolkinStartDate,0)+1)/13)-ROUNDDOWN((ROUNDDOWN(M26-tzolkinStartDate,0)+1)/13,0))*13),13)) -> 4 | P26: =INDEX(tzolkinGlyphs,MATCH(ROUND((((((M26-tzolkinStartDate)/20)-(ROUNDDOWN((M26-tzolkinStartDate)/20,0)))*20)+1),0),glyphPosition,0)) -> Ix | R26: =INDEX(schedule!$C:$C,MATCH(1,($M26=schedule!$A:$A)*(R$2=schedule!$B:$B),0)) -> An example personal task | S26: =INDEX(schedule!$C:$C,MATCH(1,($M26=schedule!$A:$A)*(S$2=schedule!$B:$B),0)) ->  | T26: =INDEX(schedule!$C:$C,MATCH(1,($M26=schedule!$A:$A)*(T$2=schedule!$B:$B),0)) -> 
B27: Glyph | C27: =glyph -> Muluc | E27: 23 | M27: 2020-09-25 | N27: =IFERROR(INDEX(tzolkinGlyphs,MATCH((ROUND(IF(((ROUND(1+(20*(((M27-tzolkinStartDate)/20)-(ROUNDDOWN((M27-tzolkinStartDate)/20,0)))),0))-(IF(((((ROUNDDOWN(M27-tzolkinStartDate,0)+1)/13)-ROUNDDOWN((ROUNDDOWN(M27-tzolkinStartDate,0)+1)/13,0))*13)>0,((((ROUNDDOWN(M27-tzolkinStartDate,0)+1)/13)-ROUNDDOWN((ROUNDDOWN(M27-tzolkinStartDate,0)+1)/13,0))*13),13)))<0,20+((ROUND(1+(20*(((M27-tzolkinStartDate)/20)-(ROUNDDOWN((M27-tzolkinStartDate)/20,0)))),0))-(IF(((((ROUNDDOWN(M27-tzolkinStartDate,0)+1)/13)-ROUNDDOWN((ROUNDDOWN(M27-tzolkinStartDate,0)+1)/13,0))*13)>0,((((ROUNDDOWN(M27-tzolkinStartDate,0)+1)/13)-ROUNDDOWN((ROUNDDOWN(M27-tzolkinStartDate,0)+1)/13,0))*13),13))),((ROUND(1+(20*(((M27-tzolkinStartDate)/20)-(ROUNDDOWN((M27-tzolkinStartDate)/20,0)))),0))-(IF(((((ROUNDDOWN(M27-tzolkinStartDate,0)+1)/13)-ROUNDDOWN((ROUNDDOWN(M27-tzolkinStartDate,0)+1)/13,0))*13)>0,((((ROUNDDOWN(M27-tzolkinStartDate,0)+1)/13)-ROUNDDOWN((ROUNDDOWN(M27-tzolkinStartDate,0)+1)/13,0))*13),13)))),0)+1),glyphPosition,0)),"Manik") -> Chuen | O27: =(IF(((((ROUNDDOWN(M27-tzolkinStartDate,0)+1)/13)-ROUNDDOWN((ROUNDDOWN(M27-tzolkinStartDate,0)+1)/13,0))*13)>0,((((ROUNDDOWN(M27-tzolkinStartDate,0)+1)/13)-ROUNDDOWN((ROUNDDOWN(M27-tzolkinStartDate,0)+1)/13,0))*13),13)) -> 5 | P27: =INDEX(tzolkinGlyphs,MATCH(ROUND((((((M27-tzolkinStartDate)/20)-(ROUNDDOWN((M27-tzolkinStartDate)/20,0)))*20)+1),0),glyphPosition,0)) -> Men | R27: =INDEX(schedule!$C:$C,MATCH(1,($M27=schedule!$A:$A)*(R$2=schedule!$B:$B),0)) ->  | S27: =INDEX(schedule!$C:$C,MATCH(1,($M27=schedule!$A:$A)*(S$2=schedule!$B:$B),0)) ->  | T27: =INDEX(schedule!$C:$C,MATCH(1,($M27=schedule!$A:$A)*(T$2=schedule!$B:$B),0)) -> 
M28: 2020-09-26 | N28: =IFERROR(INDEX(tzolkinGlyphs,MATCH((ROUND(IF(((ROUND(1+(20*(((M28-tzolkinStartDate)/20)-(ROUNDDOWN((M28-tzolkinStartDate)/20,0)))),0))-(IF(((((ROUNDDOWN(M28-tzolkinStartDate,0)+1)/13)-ROUNDDOWN((ROUNDDOWN(M28-tzolkinStartDate,0)+1)/13,0))*13)>0,((((ROUNDDOWN(M28-tzolkinStartDate,0)+1)/13)-ROUNDDOWN((ROUNDDOWN(M28-tzolkinStartDate,0)+1)/13,0))*13),13)))<0,20+((ROUND(1+(20*(((M28-tzolkinStartDate)/20)-(ROUNDDOWN((M28-tzolkinStartDate)/20,0)))),0))-(IF(((((ROUNDDOWN(M28-tzolkinStartDate,0)+1)/13)-ROUNDDOWN((ROUNDDOWN(M28-tzolkinStartDate,0)+1)/13,0))*13)>0,((((ROUNDDOWN(M28-tzolkinStartDate,0)+1)/13)-ROUNDDOWN((ROUNDDOWN(M28-tzolkinStartDate,0)+1)/13,0))*13),13))),((ROUND(1+(20*(((M28-tzolkinStartDate)/20)-(ROUNDDOWN((M28-tzolkinStartDate)/20,0)))),0))-(IF(((((ROUNDDOWN(M28-tzolkinStartDate,0)+1)/13)-ROUNDDOWN((ROUNDDOWN(M28-tzolkinStartDate,0)+1)/13,0))*13)>0,((((ROUNDDOWN(M28-tzolkinStartDate,0)+1)/13)-ROUNDDOWN((ROUNDDOWN(M28-tzolkinStartDate,0)+1)/13,0))*13),13)))),0)+1),glyphPosition,0)),"Manik") -> Chuen | O28: =(IF(((((ROUNDDOWN(M28-tzolkinStartDate,0)+1)/13)-ROUNDDOWN((ROUNDDOWN(M28-tzolkinStartDate,0)+1)/13,0))*13)>0,((((ROUNDDOWN(M28-tzolkinStartDate,0)+1)/13)-ROUNDDOWN((ROUNDDOWN(M28-tzolkinStartDate,0)+1)/13,0))*13),13)) -> 6 | P28: =INDEX(tzolkinGlyphs,MATCH(ROUND((((((M28-tzolkinStartDate)/20)-(ROUNDDOWN((M28-tzolkinStartDate)/20,0)))*20)+1),0),glyphPosition,0)) -> Cib | R28: =INDEX(schedule!$C:$C,MATCH(1,($M28=schedule!$A:$A)*(R$2=schedule!$B:$B),0)) ->  | S28: =INDEX(schedule!$C:$C,MATCH(1,($M28=schedule!$A:$A)*(S$2=schedule!$B:$B),0)) -> Schedule appointments and dates here. | T28: =INDEX(schedule!$C:$C,MATCH(1,($M28=schedule!$A:$A)*(T$2=schedule!$B:$B),0)) -> 
M29: 2020-09-27 | N29: =IFERROR(INDEX(tzolkinGlyphs,MATCH((ROUND(IF(((ROUND(1+(20*(((M29-tzolkinStartDate)/20)-(ROUNDDOWN((M29-tzolkinStartDate)/20,0)))),0))-(IF(((((ROUNDDOWN(M29-tzolkinStartDate,0)+1)/13)-ROUNDDOWN((ROUNDDOWN(M29-tzolkinStartDate,0)+1)/13,0))*13)>0,((((ROUNDDOWN(M29-tzolkinStartDate,0)+1)/13)-ROUNDDOWN((ROUNDDOWN(M29-tzolkinStartDate,0)+1)/13,0))*13),13)))<0,20+((ROUND(1+(20*(((M29-tzolkinStartDate)/20)-(ROUNDDOWN((M29-tzolkinStartDate)/20,0)))),0))-(IF(((((ROUNDDOWN(M29-tzolkinStartDate,0)+1)/13)-ROUNDDOWN((ROUNDDOWN(M29-tzolkinStartDate,0)+1)/13,0))*13)>0,((((ROUNDDOWN(M29-tzolkinStartDate,0)+1)/13)-ROUNDDOWN((ROUNDDOWN(M29-tzolkinStartDate,0)+1)/13,0))*13),13))),((ROUND(1+(20*(((M29-tzolkinStartDate)/20)-(ROUNDDOWN((M29-tzolkinStartDate)/20,0)))),0))-(IF(((((ROUNDDOWN(M29-tzolkinStartDate,0)+1)/13)-ROUNDDOWN((ROUNDDOWN(M29-tzolkinStartDate,0)+1)/13,0))*13)>0,((((ROUNDDOWN(M29-tzolkinStartDate,0)+1)/13)-ROUNDDOWN((ROUNDDOWN(M29-tzolkinStartDate,0)+1)/13,0))*13),13)))),0)+1),glyphPosition,0)),"Manik") -> Chuen | O29: =(IF(((((ROUNDDOWN(M29-tzolkinStartDate,0)+1)/13)-ROUNDDOWN((ROUNDDOWN(M29-tzolkinStartDate,0)+1)/13,0))*13)>0,((((ROUNDDOWN(M29-tzolkinStartDate,0)+1)/13)-ROUNDDOWN((ROUNDDOWN(M29-tzolkinStartDate,0)+1)/13,0))*13),13)) -> 7 | P29: =INDEX(tzolkinGlyphs,MATCH(ROUND((((((M29-tzolkinStartDate)/20)-(ROUNDDOWN((M29-tzolkinStartDate)/20,0)))*20)+1),0),glyphPosition,0)) -> Caban | R29: =INDEX(schedule!$C:$C,MATCH(1,($M29=schedule!$A:$A)*(R$2=schedule!$B:$B),0)) ->  | S29: =INDEX(schedule!$C:$C,MATCH(1,($M29=schedule!$A:$A)*(S$2=schedule!$B:$B),0)) ->  | T29: =INDEX(schedule!$C:$C,MATCH(1,($M29=schedule!$A:$A)*(T$2=schedule!$B:$B),0)) -> 
M30: 2020-09-28 | N30: =IFERROR(INDEX(tzolkinGlyphs,MATCH((ROUND(IF(((ROUND(1+(20*(((M30-tzolkinStartDate)/20)-(ROUNDDOWN((M30-tzolkinStartDate)/20,0)))),0))-(IF(((((ROUNDDOWN(M30-tzolkinStartDate,0)+1)/13)-ROUNDDOWN((ROUNDDOWN(M30-tzolkinStartDate,0)+1)/13,0))*13)>0,((((ROUNDDOWN(M30-tzolkinStartDate,0)+1)/13)-ROUNDDOWN((ROUNDDOWN(M30-tzolkinStartDate,0)+1)/13,0))*13),13)))<0,20+((ROUND(1+(20*(((M30-tzolkinStartDate)/20)-(ROUNDDOWN((M30-tzolkinStartDate)/20,0)))),0))-(IF(((((ROUNDDOWN(M30-tzolkinStartDate,0)+1)/13)-ROUNDDOWN((ROUNDDOWN(M30-tzolkinStartDate,0)+1)/13,0))*13)>0,((((ROUNDDOWN(M30-tzolkinStartDate,0)+1)/13)-ROUNDDOWN((ROUNDDOWN(M30-tzolkinStartDate,0)+1)/13,0))*13),13))),((ROUND(1+(20*(((M30-tzolkinStartDate)/20)-(ROUNDDOWN((M30-tzolkinStartDate)/20,0)))),0))-(IF(((((ROUNDDOWN(M30-tzolkinStartDate,0)+1)/13)-ROUNDDOWN((ROUNDDOWN(M30-tzolkinStartDate,0)+1)/13,0))*13)>0,((((ROUNDDOWN(M30-tzolkinStartDate,0)+1)/13)-ROUNDDOWN((ROUNDDOWN(M30-tzolkinStartDate,0)+1)/13,0))*13),13)))),0)+1),glyphPosition,0)),"Manik") -> Chuen | O30: =(IF(((((ROUNDDOWN(M30-tzolkinStartDate,0)+1)/13)-ROUNDDOWN((ROUNDDOWN(M30-tzolkinStartDate,0)+1)/13,0))*13)>0,((((ROUNDDOWN(M30-tzolkinStartDate,0)+1)/13)-ROUNDDOWN((ROUNDDOWN(M30-tzolkinStartDate,0)+1)/13,0))*13),13)) -> 8 | P30: =INDEX(tzolkinGlyphs,MATCH(ROUND((((((M30-tzolkinStartDate)/20)-(ROUNDDOWN((M30-tzolkinStartDate)/20,0)))*20)+1),0),glyphPosition,0)) -> Etznab | R30: =INDEX(schedule!$C:$C,MATCH(1,($M30=schedule!$A:$A)*(R$2=schedule!$B:$B),0)) ->  | S30: =INDEX(schedule!$C:$C,MATCH(1,($M30=schedule!$A:$A)*(S$2=schedule!$B:$B),0)) ->  | T30: =INDEX(schedule!$C:$C,MATCH(1,($M30=schedule!$A:$A)*(T$2=schedule!$B:$B),0)) -> 
M31: =M30+1 -> 2020-09-29 | N31: =IFERROR(INDEX(tzolkinGlyphs,MATCH((ROUND(IF(((ROUND(1+(20*(((M31-tzolkinStartDate)/20)-(ROUNDDOWN((M31-tzolkinStartDate)/20,0)))),0))-(IF(((((ROUNDDOWN(M31-tzolkinStartDate,0)+1)/13)-ROUNDDOWN((ROUNDDOWN(M31-tzolkinStartDate,0)+1)/13,0))*13)>0,((((ROUNDDOWN(M31-tzolkinStartDate,0)+1)/13)-ROUNDDOWN((ROUNDDOWN(M31-tzolkinStartDate,0)+1)/13,0))*13),13)))<0,20+((ROUND(1+(20*(((M31-tzolkinStartDate)/20)-(ROUNDDOWN((M31-tzolkinStartDate)/20,0)))),0))-(IF(((((ROUNDDOWN(M31-tzolkinStartDate,0)+1)/13)-ROUNDDOWN((ROUNDDOWN(M31-tzolkinStartDate,0)+1)/13,0))*13)>0,((((ROUNDDOWN(M31-tzolkinStartDate,0)+1)/13)-ROUNDDOWN((ROUNDDOWN(M31-tzolkinStartDate,0)+1)/13,0))*13),13))),((ROUND(1+(20*(((M31-tzolkinStartDate)/20)-(ROUNDDOWN((M31-tzolkinStartDate)/20,0)))),0))-(IF(((((ROUNDDOWN(M31-tzolkinStartDate,0)+1)/13)-ROUNDDOWN((ROUNDDOWN(M31-tzolkinStartDate,0)+1)/13,0))*13)>0,((((ROUNDDOWN(M31-tzolkinStartDate,0)+1)/13)-ROUNDDOWN((ROUNDDOWN(M31-tzolkinStartDate,0)+1)/13,0))*13),13)))),0)+1),glyphPosition,0)),"Manik") -> Chuen | O31: =(IF(((((ROUNDDOWN(M31-tzolkinStartDate,0)+1)/13)-ROUNDDOWN((ROUNDDOWN(M31-tzolkinStartDate,0)+1)/13,0))*13)>0,((((ROUNDDOWN(M31-tzolkinStartDate,0)+1)/13)-ROUNDDOWN((ROUNDDOWN(M31-tzolkinStartDate,0)+1)/13,0))*13),13)) -> 9 | P31: =INDEX(tzolkinGlyphs,MATCH(ROUND((((((M31-tzolkinStartDate)/20)-(ROUNDDOWN((M31-tzolkinStartDate)/20,0)))*20)+1),0),glyphPosition,0)) -> Cauac | R31: =INDEX(schedule!$C:$C,MATCH(1,($M31=schedule!$A:$A)*(R$2=schedule!$B:$B),0)) ->  | S31: =INDEX(schedule!$C:$C,MATCH(1,($M31=schedule!$A:$A)*(S$2=schedule!$B:$B),0)) ->  | T31: =INDEX(schedule!$C:$C,MATCH(1,($M31=schedule!$A:$A)*(T$2=schedule!$B:$B),0)) -> 
M32: =M31+1 -> 2020-09-30 | N32: =IFERROR(INDEX(tzolkinGlyphs,MATCH((ROUND(IF(((ROUND(1+(20*(((M32-tzolkinStartDate)/20)-(ROUNDDOWN((M32-tzolkinStartDate)/20,0)))),0))-(IF(((((ROUNDDOWN(M32-tzolkinStartDate,0)+1)/13)-ROUNDDOWN((ROUNDDOWN(M32-tzolkinStartDate,0)+1)/13,0))*13)>0,((((ROUNDDOWN(M32-tzolkinStartDate,0)+1)/13)-ROUNDDOWN((ROUNDDOWN(M32-tzolkinStartDate,0)+1)/13,0))*13),13)))<0,20+((ROUND(1+(20*(((M32-tzolkinStartDate)/20)-(ROUNDDOWN((M32-tzolkinStartDate)/20,0)))),0))-(IF(((((ROUNDDOWN(M32-tzolkinStartDate,0)+1)/13)-ROUNDDOWN((ROUNDDOWN(M32-tzolkinStartDate,0)+1)/13,0))*13)>0,((((ROUNDDOWN(M32-tzolkinStartDate,0)+1)/13)-ROUNDDOWN((ROUNDDOWN(M32-tzolkinStartDate,0)+1)/13,0))*13),13))),((ROUND(1+(20*(((M32-tzolkinStartDate)/20)-(ROUNDDOWN((M32-tzolkinStartDate)/20,0)))),0))-(IF(((((ROUNDDOWN(M32-tzolkinStartDate,0)+1)/13)-ROUNDDOWN((ROUNDDOWN(M32-tzolkinStartDate,0)+1)/13,0))*13)>0,((((ROUNDDOWN(M32-tzolkinStartDate,0)+1)/13)-ROUNDDOWN((ROUNDDOWN(M32-tzolkinStartDate,0)+1)/13,0))*13),13)))),0)+1),glyphPosition,0)),"Manik") -> Chuen | O32: =(IF(((((ROUNDDOWN(M32-tzolkinStartDate,0)+1)/13)-ROUNDDOWN((ROUNDDOWN(M32-tzolkinStartDate,0)+1)/13,0))*13)>0,((((ROUNDDOWN(M32-tzolkinStartDate,0)+1)/13)-ROUNDDOWN((ROUNDDOWN(M32-tzolkinStartDate,0)+1)/13,0))*13),13)) -> 10 | P32: =INDEX(tzolkinGlyphs,MATCH(ROUND((((((M32-tzolkinStartDate)/20)-(ROUNDDOWN((M32-tzolkinStartDate)/20,0)))*20)+1),0),glyphPosition,0)) -> Ahau | R32: =INDEX(schedule!$C:$C,MATCH(1,($M32=schedule!$A:$A)*(R$2=schedule!$B:$B),0)) ->  | S32: =INDEX(schedule!$C:$C,MATCH(1,($M32=schedule!$A:$A)*(S$2=schedule!$B:$B),0)) ->  | T32: =INDEX(schedule!$C:$C,MATCH(1,($M32=schedule!$A:$A)*(T$2=schedule!$B:$B),0)) -> 
M33: =M32+1 -> 2020-10-01 | N33: =IFERROR(INDEX(tzolkinGlyphs,MATCH((ROUND(IF(((ROUND(1+(20*(((M33-tzolkinStartDate)/20)-(ROUNDDOWN((M33-tzolkinStartDate)/20,0)))),0))-(IF(((((ROUNDDOWN(M33-tzolkinStartDate,0)+1)/13)-ROUNDDOWN((ROUNDDOWN(M33-tzolkinStartDate,0)+1)/13,0))*13)>0,((((ROUNDDOWN(M33-tzolkinStartDate,0)+1)/13)-ROUNDDOWN((ROUNDDOWN(M33-tzolkinStartDate,0)+1)/13,0))*13),13)))<0,20+((ROUND(1+(20*(((M33-tzolkinStartDate)/20)-(ROUNDDOWN((M33-tzolkinStartDate)/20,0)))),0))-(IF(((((ROUNDDOWN(M33-tzolkinStartDate,0)+1)/13)-ROUNDDOWN((ROUNDDOWN(M33-tzolkinStartDate,0)+1)/13,0))*13)>0,((((ROUNDDOWN(M33-tzolkinStartDate,0)+1)/13)-ROUNDDOWN((ROUNDDOWN(M33-tzolkinStartDate,0)+1)/13,0))*13),13))),((ROUND(1+(20*(((M33-tzolkinStartDate)/20)-(ROUNDDOWN((M33-tzolkinStartDate)/20,0)))),0))-(IF(((((ROUNDDOWN(M33-tzolkinStartDate,0)+1)/13)-ROUNDDOWN((ROUNDDOWN(M33-tzolkinStartDate,0)+1)/13,0))*13)>0,((((ROUNDDOWN(M33-tzolkinStartDate,0)+1)/13)-ROUNDDOWN((ROUNDDOWN(M33-tzolkinStartDate,0)+1)/13,0))*13),13)))),0)+1),glyphPosition,0)),"Manik") -> Chuen | O33: =(IF(((((ROUNDDOWN(M33-tzolkinStartDate,0)+1)/13)-ROUNDDOWN((ROUNDDOWN(M33-tzolkinStartDate,0)+1)/13,0))*13)>0,((((ROUNDDOWN(M33-tzolkinStartDate,0)+1)/13)-ROUNDDOWN((ROUNDDOWN(M33-tzolkinStartDate,0)+1)/13,0))*13),13)) -> 11 | P33: =INDEX(tzolkinGlyphs,MATCH(ROUND((((((M33-tzolkinStartDate)/20)-(ROUNDDOWN((M33-tzolkinStartDate)/20,0)))*20)+1),0),glyphPosition,0)) -> Imix | R33: =INDEX(schedule!$C:$C,MATCH(1,($M33=schedule!$A:$A)*(R$2=schedule!$B:$B),0)) ->  | S33: =INDEX(schedule!$C:$C,MATCH(1,($M33=schedule!$A:$A)*(S$2=schedule!$B:$B),0)) ->  | T33: =INDEX(schedule!$C:$C,MATCH(1,($M33=schedule!$A:$A)*(T$2=schedule!$B:$B),0)) -> 
M34: =M33+1 -> 2020-10-02 | N34: =IFERROR(INDEX(tzolkinGlyphs,MATCH((ROUND(IF(((ROUND(1+(20*(((M34-tzolkinStartDate)/20)-(ROUNDDOWN((M34-tzolkinStartDate)/20,0)))),0))-(IF(((((ROUNDDOWN(M34-tzolkinStartDate,0)+1)/13)-ROUNDDOWN((ROUNDDOWN(M34-tzolkinStartDate,0)+1)/13,0))*13)>0,((((ROUNDDOWN(M34-tzolkinStartDate,0)+1)/13)-ROUNDDOWN((ROUNDDOWN(M34-tzolkinStartDate,0)+1)/13,0))*13),13)))<0,20+((ROUND(1+(20*(((M34-tzolkinStartDate)/20)-(ROUNDDOWN((M34-tzolkinStartDate)/20,0)))),0))-(IF(((((ROUNDDOWN(M34-tzolkinStartDate,0)+1)/13)-ROUNDDOWN((ROUNDDOWN(M34-tzolkinStartDate,0)+1)/13,0))*13)>0,((((ROUNDDOWN(M34-tzolkinStartDate,0)+1)/13)-ROUNDDOWN((ROUNDDOWN(M34-tzolkinStartDate,0)+1)/13,0))*13),13))),((ROUND(1+(20*(((M34-tzolkinStartDate)/20)-(ROUNDDOWN((M34-tzolkinStartDate)/20,0)))),0))-(IF(((((ROUNDDOWN(M34-tzolkinStartDate,0)+1)/13)-ROUNDDOWN((ROUNDDOWN(M34-tzolkinStartDate,0)+1)/13,0))*13)>0,((((ROUNDDOWN(M34-tzolkinStartDate,0)+1)/13)-ROUNDDOWN((ROUNDDOWN(M34-tzolkinStartDate,0)+1)/13,0))*13),13)))),0)+1),glyphPosition,0)),"Manik") -> Chuen | O34: =(IF(((((ROUNDDOWN(M34-tzolkinStartDate,0)+1)/13)-ROUNDDOWN((ROUNDDOWN(M34-tzolkinStartDate,0)+1)/13,0))*13)>0,((((ROUNDDOWN(M34-tzolkinStartDate,0)+1)/13)-ROUNDDOWN((ROUNDDOWN(M34-tzolkinStartDate,0)+1)/13,0))*13),13)) -> 12 | P34: =INDEX(tzolkinGlyphs,MATCH(ROUND((((((M34-tzolkinStartDate)/20)-(ROUNDDOWN((M34-tzolkinStartDate)/20,0)))*20)+1),0),glyphPosition,0)) -> Ik | R34: =INDEX(schedule!$C:$C,MATCH(1,($M34=schedule!$A:$A)*(R$2=schedule!$B:$B),0)) ->  | S34: =INDEX(schedule!$C:$C,MATCH(1,($M34=schedule!$A:$A)*(S$2=schedule!$B:$B),0)) ->  | T34: =INDEX(schedule!$C:$C,MATCH(1,($M34=schedule!$A:$A)*(T$2=schedule!$B:$B),0)) -> 

Sheet rules (hidden)
A1: rules | B1: punchOutData
A2: date | B2: =NOW() -> 2020-09-19T21:10:45.820 | G2: tzolkinHelper
A3: =Control!B2 -> io | B3: in | G3: 2019-01-06 | H3: 15 | I3: Imix | J3: 1
A4: =Control!B3 -> name | B4: Caleb Roy | H4: 8 | I4: Ix | J4: 2 | Z4: 1 | AA4: manik | AB4: 3
A5: =Control!B4 -> focus | B5: Personal | H5: 1 | I5: Manik | J5: 3 | Z5: 2 | AA5: lamat | AB5: 20
A6: notes | B6: Study | H6: 14 | I6: Ahau | J6: 4 | Z6: 3 | AA6: muluc | AB6: 17
H7: 7 | I7: Ben | J7: 5 | Z7: 4 | AA7: oc | AB7: 14
B8: Today was a good day. Fill out your activity here and click the Punch button in the top left. These notes are recorded to the hours sheet. | H8: 20 | I8: Cimi | J8: 6 | Z8: 5 | AA8: chuen | AB8: 11
H9: 13 | I9: Cauac | J9: 7 | Z9: 6 | AA9: eb | AB9: 8
H10: 6 | I10: Eb | J10: 8 | Z10: 7 | AA10: ben | AB10: 5
H11: 19 | I11: Chicchan | J11: 9 | Z11: 8 | AA11: ix | AB11: 2
H12: 12 | I12: Etznab | J12: 10 | Z12: 9 | AA12: men | AB12: 19
H13: 5 | I13: Chuen | J13: 11 | Z13: 10 | AA13: cib | AB13: 16
A14: =Control!B13 -> 0 | H14: 18 | I14: Kan | J14: 12 | Z14: 11 | AA14: caban | AB14: 13
A15: =Control!B14 -> 0 | H15: 11 | I15: Caban | J15: 13 | Z15: 12 | AA15: etznab | AB15: 10
A16: =Control!B15 -> 0 | H16: 4 | I16: Oc | J16: 14 | Z16: 13 | AA16: cauac | AB16: 7
A17: =Control!B16 -> 0 | H17: 17 | I17: Akbal | J17: 15 | Z17: 14 | AA17: ahau | AB17: 4
A18: =Control!B17 -> 0 | H18: 10 | I18: Cib | J18: 16 | Z18: 15 | AA18: imix | AB18: 1
A19: =Control!B18 -> 0 | H19: 3 | I19: Muluc | J19: 17 | Z19: 16 | AA19: ik | AB19: 18
A20: =Control!B19 -> Data | H20: 16 | I20: Ik | J20: 18 | Z20: 17 | AA20: akbal | AB20: 15
A21: =Control!B20 -> Data 2 | B21: 155 | H21: 9 | I21: Men | J21: 19 | Z21: 18 | AA21: kan | AB21: 12
A22: =Control!B21 -> (change me) | H22: 2 | I22: Lamat | J22: 20 | Z22: 19 | AA22: chicchan | AB22: 9
A23: =Control!B22 -> 0 | Z23: 20 | AA23: cimi | AB23: 6
A24: =Control!B23 -> 0
A25: =Control!B24 -> Tzolkin
A26: =Control!B25 -> Wave | B26: Etznab
A27: =Control!B26 -> Tone | B27: 12
A28: =Control!B27 -> Glyph | B28: Muluc
A29: =Control!B28 -> 0
A30: =Control!B29 -> 0
A31: =Control!B30 -> 0
A32: =Control!B31 -> 0
A33: =Control!B32 -> 0
A34: =Control!B33 -> 0
A35: =Control!B34 -> 0

Sheet |

Sheet schedule
A1: Schedule
A2: date | B2: focus | C2: task
A3: =TODAY()+5 -> 2020-09-24 | B3: Personal | C3: An example personal task
A4: =TODAY()+7 -> 2020-09-26 | B4: Professional | C4: Schedule appointments and dates here.

Sheet hours
A1: =TRANSPOSE(Control!B1:B100) -> Date | B1: io | C1: name | D1: focus | E1: task | F1: 0 | G1: notes | H1: 0 | I1: 0 | J1: 0 | K1: 0 | L1: 0 | M1: 0 | N1: 0 | O1: 0 | P1: 0 | Q1: 0 | R1: 0 | S1: Data | T1: Data 2 | U1: (change me) | V1: 0 | W1: 0 | X1: Tzolkin | Y1: Wave | Z1: Tone | AA1: Glyph | AB1: 0 | AC1: 0 | AD1: 0 | AE1: 0 | AF1: 0 | AG1: 0 | AH1: 0 | AI1: 0 | AJ1: 0 | AK1: 0 | AL1: 0 | AM1: 0 | AN1: 0 | AO1: 0 | AP1: 0 | AQ1: 0 | AR1: 0 | AS1: 0 | AT1: 0 | AU1: 0 | AV1: 0 | AW1: 0 | AX1: 0 | AY1: 0 | AZ1: 0 | BA1: 0 | BB1: 0 | BC1: 0 | BD1: 0 | BE1: 0 | BF1: 0 | BG1: 0 | BH1: 0 | BI1: 0 | BJ1: 0 | BK1: 0 | BL1: 0 | BM1: 0 | BN1: 0 | BO1: 0 | BP1: 0 | BQ1: 0 | BR1: 0 | BS1: 0 | BT1: 0 | BU1: 0 | BV1: 0 | BW1: 0 | BX1: 0 | BY1: 0 | BZ1: 0 | CA1: 0 | CB1: 0 | CC1: 0 | CD1: 0 | CE1: 0 | CF1: 0 | CG1: 0 | CH1: 0 | CI1: 0 | CJ1: 0 | CK1: 0 | CL1: 0 | CM1: 0 | CN1: 0 | CO1: 0 | CP1: 0 | CQ1: 0 | CR1: 0 | CS1: 0 | CT1: 0 | CU1: 0 | CV1: 0
